Cogmind - Beta 11.1 @@@ ROGUE MODE // 2022.06.03 @ 02:21:33 Player: Exp. Geonium Core Result: Destroyed self with Sigix Terminator Performance ------------- Evolutions (8) 4000 Regions Visited (36) 7200 Robots Destroyed (226) 1130 Value Destroyed (15509) 15509 Prototype IDs (79) 1580 Alien Tech Used (5) 1000 Bonus (15801) 15801 TOTAL SCORE: 46220 Bonus ------- High Alert Combat Kills 272 Follower Combat Kills 8215 Entered Garrisons 2600 Used RIF Installer 6500 Aligned with FarCom 300 Built Enhanced Grunts 300 Met R17 at Cetus 500 Met R17 at Research 2000 Friendly Fire -4886 Cogmind --------- Core Integrity 0/1450 Matter 300/300 Energy 150/150 System Corruption 7% Temperature Cool (30) Movement Core (300) Ox5 Location -2/Garrison Parts ------- > --- POWER (2) -------- Micro Antimatter Reactor > --- PROPULSION (4) --- Biometal Leg > --- UTILITY (13) ----- Advanced Targeting Computer Advanced Targeting Computer Advanced Targeting Computer Advanced Hacking Suite Relay Coupler [NC] (30) Relay Coupler [C] (14) Relay Coupler [C] (51) Relay Coupler [Sentry] (30) Relay Coupler [Sentry] (21) Relay Coupler [Specialist] (23) Relay Coupler [Heavy] (15) Improved Dynamic Insulation System > --- WEAPON (4) ------- Heavy Machine Gun > --- INVENTORY (5) ---- Matter Drive Hacking Suite Heavy Neutron Cannon Advanced Remote Datajack Peak State ------------ > --- POWER ------------ Light Particle Reactor > --- PROPULSION ------- Myomer Leg Myomer Leg Myomer Leg Myomer Leg > --- UTILITY ---------- Large Storage Unit Enhanced Optical Array Improved Remote Shield Phase Redirector Advanced Hacking Suite Relay Coupler [NC] Relay Coupler [C] Relay Coupler [C] Relay Coupler [C] Relay Coupler [Sentry] Relay Coupler [Sentry] Relay Coupler [Hunter] > --- WEAPON ----------- Core Cannon Advanced Remote Datajack Enhanced Force Lance > --- INVENTORY -------- Matter Drive Relay Coupler [Demolisher] Relay Coupler [Specialist] Relay Coupler [Hunter] Relay Coupler [Heavy] Relay Coupler [Behemoth] Subatomic Replicator Terrabomb Advanced Variable Charge Gun Fusion Bomb Launcher Advanced Remote Datajack Advanced Remote Datajack Core Stripper [Rating: 165] Favorites ----------- Power Light Antimatter Reactor Engine Ion Engine Power Core Neutrino Core Reactor Light Antimatter Reactor Propulsion Myomer Leg Treads Advanced Treads Leg Myomer Leg Wheel Wheel Hover Unit Combat Gravmag System Flight Unit Cesium-ion Thruster Utility Relay Coupler [C] Device PSU Rigger Storage Large Storage Unit Processor Enhanced Optical Array Hackware Relay Coupler [C] Protection Improved Medium Armor Plating Artifact Phase Redirector Weapon Improved Remote Datajack Energy Gun Advanced Variable Charge Gun Energy Cannon Core Cannon Ballistic Gun KE Penetrator Ballistic Cannon Hypervelocity Gauss Cannon Launcher Fusion Bomb Launcher Special Weapon Improved Remote Datajack Impact Weapon Core Stripper Slashing Weapon Phasing Sabre Piercing Weapon Enhanced Force Lance Build | -11 -10 -10 -9 -9 -9 -8 -8 -8 -8 -8 -7 -7 -7 -7 -6 -6 -6 -6 -5 -5 -4 -4 -4 -4 -4 -4 -4 -3 -3 -3 -3 -3 -2 -2 -2 -2 ------- Run | Scr Mat Min Mat Min Exi Min Mat Gar Mat Gar Fac Gar Fac Gar Fac Gar Fac Gar Fac Gar Fac Gar Ext Cet Arc Hub Gar Res Gar Res Qua Gar Res Gar Tes Gar Slots Evolved 16 | . . . 2 . . . 2 . . . 2 . . . 2 . . . 2 . 2 . . . . . . 2 . . . . 2 . . . Power 1 | . . . . . . . . . . . . . . . . . . . . . . . . . . . . . . . . . 1 . . . Propulsion 2 | . . . . . . . . . . . 1 . . . 1 . . . . . . . . . . . . . . . . . . . . . Utility 11 | . . . 2 . . . . . . . 1 . . . 1 . . . 2 . 2 . . . . . . 2 . . . . 1 . . . Weapon 2 | . . . . . . . 2 . . . . . . . . . . . . . . . . . . . . . . . . . . . . . Parts Attached 486 | . 7 . 13 6 1 . 3 7 3 3 15 28 13 11 19 15 10 38 12 59 10 22 13 7 1 . 12 16 12 5 12 20 12 30 42 9 Power 40 | . . . 1 1 . . . . . 1 2 4 1 . 3 1 . 4 1 2 . 1 . . . . 1 . 1 1 . 2 3 4 6 . Engine 9 | . . . . 1 . . . . . 1 1 3 1 . 1 . . 1 . . . . . . . . . . . . . . . . . . Core 12 | . . . 1 . . . . . . . 1 1 . . 2 1 . 3 1 2 . . . . . . . . . . . . . . . . Reactor 19 | . . . . . . . . . . . . . . . . . . . . . . 1 . . . . 1 . 1 1 . 2 3 4 6 . Propulsion 116 | . 3 . 2 1 1 . 2 2 . . 3 8 2 2 4 4 1 13 4 14 4 11 4 3 . . . 4 . . 2 3 3 5 9 2 Treads 19 | . 3 . 2 1 . . 2 2 . . 1 . . . . . . . . 6 . . . 2 . . . . . . . . . . . . Leg 61 | . . . . . . . . . . . . 8 2 2 4 . . 3 . 4 . 10 4 1 . . . 4 . . 2 3 3 5 4 2 Wheel 5 | . . . . . 1 . . . . . 2 . . . . . . . . . . . . . . . . . . . . . . . 2 . Hover 23 | . . . . . . . . . . . . . . . . 4 . 3 4 4 4 1 . . . . . . . . . . . . 3 . Flight 8 | . . . . . . . . . . . . . . . . . 1 7 . . . . . . . . . . . . . . . . . . Utility 169 | . 2 . 4 1 . . . 3 3 2 5 9 4 3 10 5 2 5 4 16 3 6 2 2 1 . 9 8 10 2 5 8 6 12 12 5 Device 39 | . . . 1 . . . . 1 2 2 5 4 1 1 5 . 1 . . 3 . . 1 . . . 1 2 . 1 1 . 1 2 2 2 Storage 7 | . 1 . . . . . . . . . . . . . 1 . . . . . 1 . . . . . . 2 . . . . . . 2 . Processor 21 | . 1 . 3 . . . . . . . . 1 . . 1 2 1 1 1 2 . 1 . 1 . . . . . . . . 1 1 2 2 Hackware 88 | . . . . . . . . 1 1 . . 4 3 2 2 3 . 4 2 7 2 5 1 1 1 . 6 4 10 1 3 8 3 7 6 1 Protection 13 | . . . . 1 . . . 1 . . . . . . 1 . . . 1 4 . . . . . . 2 . . . . . 1 2 . . Artifact 1 | . . . . . . . . . . . . . . . . . . . . . . . . . . . . . . . 1 . . . . . Weapon 161 | . 2 . 6 3 . . 1 2 . . 5 7 6 6 2 5 7 16 3 27 3 4 7 2 . . 2 4 1 2 5 7 . 9 15 2 Energy Gun 12 | . . . . . . . . . . . . 1 . . . 3 1 1 . 1 . . . . . . 1 1 . . . 2 . 1 . . Energy Cannon 3 | . . . . . . . . . . . . . . . . . . . . . . . . . . . . . . . 2 . . . 1 . Ballistic Gun 63 | . 1 . 4 1 . . 1 1 . . 4 2 . 1 1 . 3 7 . 17 . 1 2 2 . . . . . . . . . 5 9 1 Ballistic Cannon 6 | . . . . . . . . . . . . . . . . . 1 1 . 1 1 . 2 . . . . . . . . . . . . . Launcher 21 | . 1 . 2 2 . . . . . . . . 4 1 . 2 1 2 . 1 . . . . . . . 1 . 1 1 1 . . . 1 Special Weapon 43 | . . . . . . . . . . . . 3 1 3 1 . 1 4 3 7 2 2 1 . . . 1 2 1 1 1 2 . 3 4 . Impact Weapon 1 | . . . . . . . . . . . . . . . . . . . . . . . . . . . . . . . . 1 . . . . Slashing Weapon 9 | . . . . . . . . 1 . . 1 1 1 1 . . . 1 . . . 1 2 . . . . . . . . . . . . . Piercing Weapon 3 | . . . . . . . . . . . . . . . . . . . . . . . . . . . . . . . 1 1 . . 1 . Special Melee Weapon . | . . . . . . . . . . . . . . . . . . . . . . . . . . . . . . . . . . . . . Unidentified Prototypes 6 | . . . . . . . . . . . 1 . 1 . . . . . . . . . . . . . 1 1 . . 2 . . . . . Parts Lost 157 | . . . 2 3 . . . 2 . . 6 12 . 4 9 5 . 15 . 18 5 6 4 1 . 1 1 1 1 . 4 14 1 8 24 10 Power 19 | . . . . 1 . . . 1 . . 1 3 . . 1 1 . 1 . . . . . . . . 1 . . . . 2 . 2 4 1 Propulsion 48 | . . . 2 2 . . . 1 . . 2 3 . . . 3 . 6 . 4 2 2 1 1 . . . . . . 1 3 . 2 8 5 Utility 42 | . . . . . . . . . . . 2 3 . 1 6 . . 2 . 7 2 . . . . 1 . 1 . . 2 5 1 3 4 2 Weapon 48 | . . . . . . . . . . . 1 3 . 3 2 1 . 6 . 7 1 4 3 . . . . . 1 . 1 4 . 1 8 2 Highest Loss Streak 11 | . . . 1 1 . . . 2 . . 4 4 . 2 4 2 . 11 . 11 3 4 4 1 . 1 1 1 1 . 3 11 1 4 7 6 To Critical Strikes 5 | . . . 1 . . . . . . . . . . . . . . . . . . . . . . . . . . . 1 . . . 2 1 Average Slot Usage (%) 87 | . 85 100 98 87 88 88 72 65 63 69 83 91 97 87 79 76 67 71 96 90 89 85 94 92 84 79 83 90 92 99 98 80 83 88 83 96 Engine 2 | . 14 14 . 9 11 11 9 2 . 6 1 5 7 7 5 . . 1 . . . . . . . . . . . . . . . . . . Core 1 | . . . 10 . . . . . . . 5 . . . . 5 6 2 5 5 5 1 . . . . . . . . . . . . . . Reactor 2 | . . . . . . . . . . . . . . . . . . . . . . 3 5 5 5 5 4 4 4 4 4 3 8 6 3 8 Treads 5 | . 23 28 21 20 11 11 13 18 18 18 11 1 . . . . . . . 14 . . . 3 10 10 10 4 . . . . . . . . Leg 10 | . 4 . . . . . . . . . . 18 23 22 26 6 . 1 . 1 . 18 20 12 . . . 10 19 19 18 17 17 15 10 5 Hover 1 | . . . . . . . . . . . . . . . . 13 13 4 20 4 20 2 . . . . . . . . . . . . 1 . Device 4 | . . . 10 2 . . . . 9 9 26 12 7 1 7 . 3 . . 3 . . . . . . . 5 4 4 7 . . 5 3 4 Storage 5 | . 14 14 11 11 11 11 9 9 9 9 7 7 7 7 6 6 6 2 . . 3 5 5 5 5 5 5 8 4 4 4 4 4 4 2 4 Processor 9 | . . 14 22 22 22 22 18 14 9 9 . 4 . . . 6 10 14 11 12 10 10 15 18 21 21 15 4 4 4 4 1 . 3 9 10 Hackware 20 | . . . . . . . . 3 9 9 . 9 21 23 13 17 18 13 28 14 28 26 27 26 21 16 23 28 33 40 38 34 34 29 36 36 Protection 2 | . . . . 8 11 11 9 8 . . . . . . 1 1 . . 4 8 . . . . . . 2 4 4 . . . . 5 . . Energy Gun 1 | . . . . . . . . . . . . 5 7 2 . 9 4 . . . . . . . . . . 4 4 4 1 6 8 4 . . Ballistic Gun 7 | . 27 28 21 3 . . 9 8 9 9 19 5 7 6 7 3 2 12 9 17 5 . 3 8 10 10 9 . . . . . . 4 5 7 Special Weapon 3 | . . . . . . . . . . . . 2 4 4 2 . . . 10 2 13 5 4 5 5 5 5 8 5 9 7 3 4 2 3 4 Slashing Weapon 2 | . . . . . . . . . . . 4 12 7 6 5 . . 1 . . . 3 8 6 5 5 5 4 . . . . . . . . Naked Turns . | . . . . . . . . . . . . . . . . . . . . . . . . . . . . . . . . . . . . . Heaviest Build 87 | 12 27 27 34 37 33 33 45 45 37 40 50 53 56 53 66 56 49 49 20 52 33 40 54 42 42 42 49 83 83 74 80 59 75 87 75 67 Greatest Support 160 | 20 40 40 40 40 10 10 44 44 44 44 66 30 46 46 68 68 29 38 50 113 50 95 100 160 160 160 160 160 100 100 107 107 112 114 114 50 Greatest Overweight (x) 13 | . . . 1 1 3 3 4 1 . . 2 4 1 1 . 1 1 13 3 1 . 1 . . . . . . . . . 1 . 1 1 3 Average Overweight (x) . | . . . . . 3 3 3 . . . 1 1 1 . . . . . . . . . . . . . . . . . . . . . . 1 Largest Inventory Capacity 15 | . 15 15 15 15 15 15 15 15 15 15 15 15 15 15 15 15 15 15 5 5 10 10 10 10 10 10 10 15 15 15 15 15 15 15 15 15 Average Capacity 12 | . 9 15 15 15 15 15 15 15 15 15 15 15 15 15 15 15 15 9 5 5 8 10 10 10 10 10 10 14 15 15 15 15 15 15 11 15 Most Carried 15 | . 9 10 13 15 15 15 15 15 15 15 14 15 15 15 15 14 14 15 5 5 5 10 10 10 10 9 10 15 15 15 15 15 14 15 15 12 Average Carried 11 | . 7 9 9 14 14 15 13 14 14 14 11 13 14 12 14 12 13 8 4 4 4 9 9 9 9 9 9 12 14 14 14 12 12 14 10 10 Final Capacity 15 | 8 15 15 15 15 15 15 15 15 15 15 15 15 15 15 15 15 15 5 5 5 10 10 10 10 10 10 10 15 15 15 15 15 15 15 15 5 Final Carried 15 | 6 9 10 13 15 15 15 15 15 15 15 12 15 15 11 14 14 14 5 5 5 5 10 10 10 9 9 10 15 14 15 15 15 13 15 12 5 Class Distribution -------------------- 46% | Botlord-Mutant 13% | Bothacker-Mutant 10% | Mutant 7% | Skirmisher 4% | Commander-Mutant 3% | Scavenger-Tank 3% | Scavenger-Mutant Dominant Class ---------------- Mutant | -10/Materials Mutant | -10/Mines Mutant | -9/Materials Mutant | -9/Mines Mutant | -9/Exiles Mutant | -8/Mines Gunner | -8/Materials Gunner | -8/Garrison Skirmisher | -8/Materials Skirmisher | -8/Garrison Skirmisher | -7/Factory Bothacker-Mutant | -7/Garrison Bothacker-Mutant | -7/Factory Bothacker-Mutant | -7/Garrison Bothacker-Mutant | -6/Factory Botlord-Mutant | -6/Garrison Bothacker-Mutant | -6/Factory Botlord-Skirmisher | -6/Garrison Botlord-Mutant | -5/Factory Scavenger-Tank | -5/Garrison Botlord-Mutant | -4/Factory Botlord-Mutant | -4/Garrison Botlord-Mutant | -4/Extension Commander-Mutant | -4/Cetus Commander-Mutant | -4/Archives Commander-Mutant | -4/Hub_04(d) Botlord-Mutant | -4/Garrison Botlord-Mutant | -3/Research Botlord-Mutant | -3/Garrison Botlord-Mutant | -3/Research Botlord-Mutant | -3/Quarantine Botlord-Mutant | -3/Garrison Botlord-Mutant | -2/Research Botlord-Mutant | -2/Garrison Botlord-Mutant | -2/Testing Botlord-Mutant | -2/Garrison Resources | -11 -10 -10 -9 -9 -9 -8 -8 -8 -8 -8 -7 -7 -7 -7 -6 -6 -6 -6 -5 -5 -4 -4 -4 -4 -4 -4 -4 -3 -3 -3 -3 -3 -2 -2 -2 -2 ----------- Run | Scr Mat Min Mat Min Exi Min Mat Gar Mat Gar Fac Gar Fac Gar Fac Gar Fac Gar Fac Gar Fac Gar Ext Cet Arc Hub Gar Res Gar Res Qua Gar Res Gar Tes Gar Matter Collected 12568 | 188 274 52 221 127 98 . 13 441 387 464 467 726 196 442 255 249 85 760 164 1241 477 586 301 222 94 14 154 300 475 . 612 505 368 630 835 145 Remotely . | . . . . . . . . . . . . . . . . . . . . . . . . . . . . . . . . . . . . . Salvage Created 10178 | . 238 96 344 157 . . 110 431 387 330 547 856 31 85 390 102 86 710 170 927 263 138 318 117 201 18 64 347 116 . 610 367 261 526 653 182 Parts 537 | . 23 3 34 13 . . 11 25 10 19 27 34 1 7 15 3 5 38 18 64 15 8 12 5 2 2 2 15 2 . 29 15 22 18 30 10 Haulers Intercepted 2 | . 1 . . . . . . . 1 . . . . . . . . . . . . . . . . . . . . . . . . . . . Recyclers Shooed 8 | . . . 1 1 . . . . . . . . . . 1 . 2 . . . 2 . . . . . . 1 . . . . . . . . Parts Field Recycled . | . . . . . . . . . . . . . . . . . . . . . . . . . . . . . . . . . . . . . Retrieved Matter . | . . . . . . . . . . . . . . . . . . . . . . . . . . . . . . . . . . . . . Parts Self-Destructed . | . . . . . . . . . . . . . . . . . . . . . . . . . . . . . . . . . . . . . Prevented . | . . . . . . . . . . . . . . . . . . . . . . . . . . . . . . . . . . . . . Kills | -11 -10 -10 -9 -9 -9 -8 -8 -8 -8 -8 -7 -7 -7 -7 -6 -6 -6 -6 -5 -5 -4 -4 -4 -4 -4 -4 -4 -3 -3 -3 -3 -3 -2 -2 -2 -2 ------- Run | Scr Mat Min Mat Min Exi Min Mat Gar Mat Gar Fac Gar Fac Gar Fac Gar Fac Gar Fac Gar Fac Gar Ext Cet Arc Hub Gar Res Gar Res Qua Gar Res Gar Tes Gar Combat Hostiles Destroyed 169 | . 7 2 14 8 . . 1 10 6 11 7 17 1 3 5 2 1 17 1 14 1 1 2 2 . . . 1 1 . 2 6 3 9 7 7 Melee 24 | . . . . . . . . 1 . . 2 4 . . 4 . . 2 . . . . . 2 . . . . . . 2 3 1 . 3 . Guns 110 | . 5 2 11 1 . . 1 9 6 11 5 12 . . 1 2 1 10 . 13 . . . . . . . 1 1 . . 2 2 9 4 1 Cannons 8 | . . . . . . . . . . . . . . . . . . 3 1 . 1 1 2 . . . . . . . . . . . . . AOE 26 | . 2 . 3 7 . . . . . . . . 1 3 . . . 2 . 1 . . . . . . . . . . . 1 . . . 6 Classes Destroyed 19 | . 5 . 3 . . . 1 1 . . 3 1 . . 1 . . 2 1 . . . . . . . . . . . 1 . . . . . Worker 16 | . . . 1 2 . . . . . . 2 . . . . . 1 . 1 . 2 . . . . 1 . 1 . . 4 . 1 . . . Builder 10 | . 1 . . . . . 2 . . . 2 . . . . . . . . . . . 1 . . . . . . . 2 . 1 . 1 . Hauler 2 | . 1 . . . . . . . 1 . . . . . . . . . . . . . . . . . . . . . . . . . . . Recycler 9 | . . . . . . . . . . . 1 . 1 . 1 . . . . . 1 . 1 . . . . 1 . . 2 . . . 1 . Carrier 3 | . . . . . . . . . . . . . . . . . . 1 . . . . . . . . . . . . . . . . . 2 Operator 3 | . . . . . . . 1 . 1 . . . . . . . . . . . . . . . . . . . . . . . . . 1 . Watcher 2 | . 1 . 1 . . . . . . . . . . . . . . . . . . . . . . . . . . . . . . . . . Swarmer 48 | . 3 . 9 4 . . . 4 . 6 . . . 3 . 1 . 9 . 2 . . . . . . . . 1 . . 1 . 4 1 . Saboteur 3 | . . . . . . . . . . . . . . . . . . 2 . . . . . . . . . . . . . 1 . . . . Grunt 60 | . 4 2 2 2 . . . 2 5 5 3 13 . 1 2 . 1 5 . 6 . . . . . . . . 1 . . 1 . 2 . 3 Brawler 4 | . . . 1 . . . . . . . . . . . . . . . . . . 1 . . 1 . . . . . . . 1 . . . Duelist 4 | . . . . . . . . . . . . 3 . . . . . . . . . . . . . . . . . . . . . 1 . . Researcher 1 | . . . . . . . . . . . . . . . . . . . . . . . . . . . . . . . 1 . . . . . Sentry 18 | . . . 2 2 . . 1 2 1 . 2 1 . . 1 1 . . . 2 . . 2 . . . . . . . . . . 1 . . Demolisher 1 | . . . . . . . . . . . . . . . . . . . 1 . . . . . . . . . . . . . . . . . Specialist 1 | . . . . . . . . . . . 1 . . . . . . . . . . . . . . . . . . . . . . . . . Hunter 10 | . . . . . . . . . . . . . . . 1 . . . . 3 1 . . . . . . 1 . . . . . . 3 1 Programmer 20 | . . . . . . . . . . . 1 . 1 . 1 . . 1 1 . . 1 . . . . . . . . 2 3 2 1 3 3 Behemoth 5 | . . . . . . . . 2 . . . . . . . . . . . 1 . . . . . . . . . . . 1 . . . 1 Cetus Guard 2 | . . . . . . . . . . . . . . . . . . . . . . . . 2 . . . . . . . . . . . . Enhanced Grunt 1 | . . . . . . . . . . . . . . . . . . . . . . . . . . . . 1 . . . . . . . . Thug 2 | . . . . . . . . . . . . . . . . . . . . . . . . . 1 . 1 . . . . . . . . . Guerrilla 1 | . . . . . . . . . . . . . . . . . . . . . . . . . 1 . . . . . . . . . . . Best Kill Streak 7 | . 4 2 6 4 . . 2 5 6 6 3 4 2 3 1 1 1 7 1 4 1 1 2 2 . 1 . 2 1 . 4 2 3 3 3 7 Combat Bots Only 7 | . 3 2 4 4 . . 1 5 5 6 3 4 1 3 1 1 1 7 1 4 1 1 2 2 . . . 1 1 . 1 2 3 3 2 5 Max Kills in Single Turn 8 | . 2 1 3 4 . . 1 2 1 1 2 1 2 2 1 1 1 2 1 2 1 1 1 1 1 1 1 1 1 . 1 2 2 1 1 8 Gunslinging 1 | . . . 1 . . . . . . . . . . . . . . 1 . 1 . . . . . . . . . . . . 1 . . . Exploded 5 | . 1 . 2 4 . . . . . . . . 1 2 . . . 1 . 1 . . . . . . . . . . . 1 . . . 5 Melee 1 | . . . . . . . . 1 . . 1 1 . . 1 . . 1 . . . . . 1 . . . . . . 1 1 1 . 1 . Uniques/NPCs Destroyed 1 | . . . . . . . . . . . . . . . . . . . . . . . . 1 . . . . . . . . . . . . A7 (-4/Cetus) Combat | -11 -10 -10 -9 -9 -9 -8 -8 -8 -8 -8 -7 -7 -7 -7 -6 -6 -6 -6 -5 -5 -4 -4 -4 -4 -4 -4 -4 -3 -3 -3 -3 -3 -2 -2 -2 -2 -------- Run | Scr Mat Min Mat Min Exi Min Mat Gar Mat Gar Fac Gar Fac Gar Fac Gar Fac Gar Fac Gar Fac Gar Ext Cet Arc Hub Gar Res Gar Res Qua Gar Res Gar Tes Gar Damage Taken 25944 | . 257 194 518 293 . . 53 541 227 184 1290 1396 311 609 1076 769 89 1703 60 2843 426 565 1011 112 . 159 322 573 495 19 809 2220 374 1432 3867 1147 Core 4454 | . 116 54 80 42 . . . 71 45 17 114 347 21 91 51 113 70 359 20 327 80 87 120 19 . . 22 97 54 . 114 377 22 168 831 525 Absorbed by Shields 695 | . . . 176 44 . . . . . . . . . . 118 . . 50 . . . . 21 46 . . . 20 115 6 99 . . . . . Redirected to Core 87 | . . . . . . . . . . . . . . . . . . . . . . . . . . . . . . . 87 . . . . . Redirected to Shielding 172 | . . . . . . . . . . . . . . . . . . . . . . . . . . . . . . . . . . 172 . . Regen/Repaired (Parts) 54 | . . . . . . . . . . . . . . . . . . . . . . . . . . . . . . 54 . . . . . . Core Remaining (%) 56 | 100 . 32 . . . 69 . . . 75 . . . 18 . . . 30 . 65 . . . . . . 71 . . . . 50 . . . . Volleys Fired 1028 | . 26 9 34 10 . . 12 23 20 21 37 74 39 18 11 29 11 47 16 84 51 46 27 9 12 3 6 28 54 10 61 40 31 60 61 8 Largest 4 | . 2 2 2 1 . . 1 1 1 1 3 2 3 2 1 4 1 4 3 4 3 2 3 1 1 1 1 1 1 1 1 1 2 3 3 3 Hottest 218 | . 40 40 50 33 . . 60 60 60 60 60 85 118 85 23 218 65 165 66 138 68 61 175 7 7 7 7 80 80 10 80 94 182 182 90 173 Shots Fired 1459 | . 50 17 66 12 . . 12 23 20 21 78 120 45 22 13 41 11 75 26 196 55 48 34 9 12 3 6 28 54 10 61 41 41 111 85 13 Gun 962 | . 48 17 63 6 . . 12 23 20 21 78 113 7 7 11 37 8 57 18 164 17 4 . . . . . 10 18 . 15 11 20 94 55 8 Cannon 61 | . . . . . . . . . . . . . . . . . . 8 . . 12 22 16 . . . . . . . . . . . . 3 Launcher 31 | . 2 . 3 6 . . . . . . . . 6 5 . 4 . 2 . 1 . . . . . . . . . . . 1 . . . 1 Special 405 | . . . . . . . . . . . . 7 32 10 2 . 3 8 8 31 26 22 18 9 12 3 6 18 36 10 46 29 21 17 30 1 Kinetic 819 | . 48 17 63 6 . . 12 23 20 21 78 74 4 4 11 20 . 62 18 162 29 26 16 . . . . . . . . . . 42 55 8 Thermal 195 | . . . . . . . . . . . . 39 3 3 . . . . 2 6 4 . . . . . . 10 18 . 23 11 20 52 . 4 Explosive 26 | . 2 . 3 6 . . . . . . . . 6 5 . . . 2 . 1 . . . . . . . . . . . 1 . . . . Electromagnetic 32 | . . . . . . . . . . . . . . . . 21 8 3 . . . . . . . . . . . . . . . . . . Robot Hit Streak 27 | . 7 8 16 15 . . 13 16 12 6 12 21 6 2 7 3 10 11 16 27 12 11 9 10 4 6 12 11 13 12 21 15 16 10 14 13 Robot Miss Streak 8 | . 3 5 2 . . . 4 6 3 8 5 3 2 4 3 5 1 2 2 4 2 5 2 . 1 . . 1 2 . 2 1 2 3 2 1 Penetration Max 1 | . . . . . . . . . . . . . . . . . . 1 . . . 1 . . . . . . . . . . . 1 . . Secondary Targets 15 | . 1 . 1 . . . . . . . 1 . . . . . . 4 . 4 . . . . . . . . . . . . 1 3 . . Max Gunslinging Chain 2 | . 1 . 1 . . . . . . . 1 . . . . . . 1 . 2 . . . . . . . . . . . . 1 1 . . Shots Hit Robots 1120 | . 28 13 43 11 . . 5 27 17 15 47 97 27 11 27 21 10 45 21 149 35 31 36 13 18 4 16 29 32 10 50 45 32 67 80 8 Core Hits 391 | . 20 6 25 11 . . 4 19 13 16 20 35 3 12 7 8 4 31 8 36 8 4 4 3 4 . 2 5 3 . 7 8 5 23 20 17 Critical Kills 13 | . . . 1 . . . . . . . . . . . . . . 5 . 2 . 2 2 . . . . . . . . . . . 1 . Critical Parts Destroyed 18 | . . . 1 . . . . . . . . . . . . . . 6 . 2 2 4 . . . . . . . . . . . 3 . . Critical Strikes 67 | . . . 2 . . . . 2 . . . 3 . . 5 . . 11 . 4 3 7 7 . 1 . 3 . . . 7 4 1 4 3 . Burn 2 | . . . . . . . . . . . . 1 . . . . . . . . . . . . . . . . . . . . . 1 . . Destroy 37 | . . . 2 . . . . . . . . . . . . . . 11 . 4 2 7 7 . . . . . . . . . . 3 1 . Sever 14 | . . . . . . . . 2 . . . 2 . . 5 . . . . . 1 . . . 1 . 3 . . . . . . . . . Impale 14 | . . . . . . . . . . . . . . . . . . . . . . . . . . . . . . . 7 4 1 . 2 . Melee Attacks 247 | . . . . . . . . 8 . . 13 20 . 6 29 . . 1 . . . 4 30 7 9 1 16 12 . . 26 29 4 11 21 . Impact . | . . . . . . . . . . . . . . . . . . . . . . . . . . . . . . . . . . . . . Slashing 156 | . . . . . . . . 8 . . 13 20 . 6 29 . . 1 . . . 4 30 7 9 1 16 12 . . . . . . . . Piercing 91 | . . . . . . . . . . . . . . . . . . . . . . . . . . . . . . . 26 29 4 11 21 . Sneak Attacks 48 | . . . . . . . . . . . . . . . 5 . . . . . . . 7 . 9 1 6 3 . . 11 . 3 . 3 . Combat Hostiles 8 | . . . . . . . . . . . . . . . 3 . . . . . . . 4 . . . . 1 . . . . . . . . Follow-up Attacks 3 | . . . . . . . . . . . . 2 . . . . . . . . . . . 1 . . . . . . . . . . . . Damage Inflicted 38596 | . 426 112 644 554 . 1 306 1652 1156 802 1270 1939 308 630 1217 330 101 765 242 2729 318 267 943 167 699 67 638 560 162 . 1665 1001 706 1556 1596 13067 Guns 14284 | . 209 112 429 82 . . 306 1402 1133 802 962 1453 46 35 74 258 101 331 202 2550 136 40 . . . . . 269 162 . . 225 369 1556 952 88 Cannons 797 | . . . . . . . . . . . . . . . . . . 146 . . 115 227 184 . . . . . . . . . . . . 125 Explosions 15266 | . 208 . 203 456 . . . . . . . . 262 501 . 72 . 288 . 132 . . . . . . . . . . . 290 . . . 12854 Melee 8020 | . . . . . . . . 250 . . 308 486 . 94 1143 . . . . . . . 759 167 699 67 638 291 . . 1651 486 337 . 644 . Ramming 75 | . 9 . 12 16 . 1 . . 23 . . . . . . . . . . . . . . . . . . . . . 14 . . . . . Kinetic 12437 | . 209 112 429 82 . . 306 1402 1133 802 962 1070 25 14 74 136 . 435 202 2550 251 267 184 . . . . . . . . . . 752 952 88 Thermal 15387 | . . . . . . . . . . . . 383 21 21 . . . . 40 47 67 . . . . . . 269 162 . . 225 369 804 . 12979 Explosive 2340 | . 208 . 203 456 . . . . . . . . 262 501 . . . 288 . 132 . . . . . . . . . . . 290 . . . . Electromagnetic 337 | . . . . . . . . . . . . . . . . 194 101 42 . . . . . . . . . . . . . . . . . . Impact . | . . . . . . . . . . . . . . . . . . . . . . . . . . . . . . . . . . . . . Slashing 4902 | . . . . . . . . 250 . . 308 486 . 94 1143 . . . . . . . 759 167 699 67 638 291 . . . . . . . . Piercing 3118 | . . . . . . . . . . . . . . . . . . . . . . . . . . . . . . . 1651 486 337 . 644 . Highest Corruption 18 | . 4 4 5 5 5 5 . . . . 12 14 16 18 9 9 9 9 . . . 1 1 . . . . . . 1 . 8 1 2 7 7 Average Corruption 6 | . 3 4 5 5 5 5 . . . . 12 12 15 17 8 9 9 9 . . . 1 1 . . . . . . 1 . 6 1 1 3 7 Corruption Purged 3 | . . . . . . . . . . . . . . . 1 . . . . . . . 1 . . . . . . 1 . . . . . . Corruption Blocked . | . . . . . . . . . . . . . . . . . . . . . . . . . . . . . . . . . . . . . Effects 373 | . 9 5 12 17 5 3 . . . . 35 79 39 30 13 13 8 22 . . . 7 8 . . . . . . 1 . 28 . 14 17 8 Message Errors 88 | . 3 2 3 5 3 . . . . . 7 19 9 4 3 5 2 3 . . . 1 2 . . . . . . . . 8 . 4 2 3 Matter Fused 78 | . 1 1 2 3 1 . . . . . 6 21 9 6 2 3 1 6 . . . 2 3 . . . . . . . . 4 . 3 3 1 Heat Flow Errors 48 | . 2 . 3 1 . 1 . . . . 3 7 4 2 3 2 3 5 . . . 1 1 . . . . . . . . 7 . . 3 . Energy Discharges 52 | . 1 . 2 3 . . . . . . 8 12 4 4 1 1 . 1 . . . . 2 . . . . . . 1 . 3 . 4 1 4 Parts Rejected 7 | . 1 . 1 . . . . . . . 1 2 1 1 . . . . . . . . . . . . . . . . . . . . . . Data Loss (minor) 44 | . 1 . . 2 1 2 . . . . 3 7 6 4 2 . 2 3 . . . 2 . . . . . . . . . 4 . 2 3 . Data Loss (major) 20 | . . 1 1 1 . . . . . . 3 3 4 3 . . . 1 . . . . . . . . . . . . . 1 . . 2 . Misfires 16 | . . . . 2 . . . . . . 1 1 1 2 2 1 . 1 . . . 1 . . . . . . . . . 1 . . 3 . Alerts 4 | . . . . . . . . . . . 1 1 . 2 . . . . . . . . . . . . . . . . . . . . . . Misdirections 3 | . . . . . . . . . . . . 1 . 2 . . . . . . . . . . . . . . . . . . . . . . Weapon Failures 13 | . . 1 . . . . . . . . 2 5 1 . . 1 . 2 . . . . . . . . . . . . . . . 1 . . Overload Shots . | . . . . . . . . . . . . . . . . . . . . . . . . . . . . . . . . . . . . . Overflow Damage 3818 | . 3 . . . . . . 26 . . 9 32 2 17 106 . . . . . . . 145 . 102 27 43 11 . . 1029 207 113 . 168 1778 Projectiles . | . . . . . . . . . . . . . . . . . . . . . . . . . . . . . . . . . . . . . Explosions 1797 | . 3 . . . . . . . . . . . 2 6 . . . . . . . . . . . . . . . . . 8 . . . 1778 Melee 2021 | . . . . . . . . 26 . . 9 32 . 11 106 . . . . . . . 145 . 102 27 43 11 . . 1029 199 113 . 168 . Knockbacks 4 | . . . . . . . . . . . . . . . . . . . . . 1 2 1 . . . . . . . . . . . . . Impact . | . . . . . . . . . . . . . . . . . . . . . . . . . . . . . . . . . . . . . Kinetic 3 | . . . . . . . . . . . . . . . . . . . . . 1 1 1 . . . . . . . . . . . . . Secondary 1 | . . . . . . . . . . . . . . . . . . . . . . 1 . . . . . . . . . . . . . . Self-Inflicted Damage 1253 | . . . . 99 . . . . . . . . 60 72 . 18 . 47 . 37 . . . . . . . . . . . 30 . . . 890 Shots 17 | . . . . 4 . . . . . . . . 3 3 . 1 . 2 . 1 . . . . . . . . . . . 1 . . . 2 Rammed 8 | . 2 . . 1 . 1 . . 4 . . . . . . . . . . . . . . . . . . . . . . . . . . . Targets Rammed 12 | . 2 . 1 2 . 1 . . 4 . . . . . . . . . . . . . . . . . . . . . 2 . . . . . Kicked 2 | . . . . . . . . . . . . . . . . . . . . . . . . . . . . . . . 2 . . . . . Crushed 2 | . . . 1 1 . . . . . . . . . . . . . . . . . . . . . . . . . . . . . . . . Highest Temperature 486 | . 226 19 273 85 . 170 234 356 134 87 176 269 204 200 277 237 183 279 12 215 84 140 241 . . . 9 30 30 . . 357 486 170 141 155 Average Temperature 75 | . 54 9 96 25 . 89 88 137 41 31 27 65 78 63 120 100 46 97 12 36 34 27 97 . . . 9 11 11 . . 125 188 61 55 74 Received Heat Transfer 3603 | . 84 108 121 61 . . . 156 126 54 381 573 63 114 69 132 27 297 . 516 . 42 100 16 . 48 84 18 59 . 81 138 9 108 . 18 Effects 7 | . . . . . . . . . . . . . . . . . . 1 . 1 . . . . . . . . . . . 2 3 . . . Shutdowns 1 | . . . . . . . . . . . . . . . . . . . . . . . . . . . . . . . . 1 . . . . Energy Bleed 4 | . . . . . . . . . . . . . . . . . . 1 . 1 . . . . . . . . . . . . 2 . . . Matter Decay 1 | . . . . . . . . . . . . . . . . . . . . . . . . . . . . . . . . . 1 . . . Short Circuit 1 | . . . . . . . . . . . . . . . . . . . . . . . . . . . . . . . . 1 . . . . Siege Activations . | . . . . . . . . . . . . . . . . . . . . . . . . . . . . . . . . . . . . . Robots Corrupted . | . . . . . . . . . . . . . . . . . . . . . . . . . . . . . . . . . . . . . Combat Hostiles . | . . . . . . . . . . . . . . . . . . . . . . . . . . . . . . . . . . . . . Parts Fried 3 | . . . . . . . . . . . . 2 . . . . . . . . . . . . . . . . . . . . . . 1 . Impact Corruptions . | . . . . . . . . . . . . . . . . . . . . . . . . . . . . . . . . . . . . . Robots Melted . | . . . . . . . . . . . . . . . . . . . . . . . . . . . . . . . . . . . . . Combat Hostiles . | . . . . . . . . . . . . . . . . . . . . . . . . . . . . . . . . . . . . . Parts Melted 7 | . . . . . . . . . . . . 2 . . . . . . . . 1 . . . . . . . 1 . . 2 . 1 . . Heat Transferred 3922 | . . . . . . . . . . . . 962 37 37 . . . . 74 111 148 . . . . . . 333 176 . . 259 444 1147 . 194 Parts Sabotaged 5 | . . . . . . . . . . . . . . . . . . 5 . . . . . . . . . . . . . . . . . . Parts Stolen . | . . . . . . . . . . . . . . . . . . . . . . . . . . . . . . . . . . . . . Parts Stripped . | . . . . . . . . . . . . . . . . . . . . . . . . . . . . . . . . . . . . . Power Chain Reactions 1 | . . . . . . . . . . . . . . . . . . . . . . . . . . . . . . . . . . . . 1 Missiles Intercepted . | . . . . . . . . . . . . . . . . . . . . . . . . . . . . . . . . . . . . . Alert | -11 -10 -10 -9 -9 -9 -8 -8 -8 -8 -8 -7 -7 -7 -7 -6 -6 -6 -6 -5 -5 -4 -4 -4 -4 -4 -4 -4 -3 -3 -3 -3 -3 -2 -2 -2 -2 ------- Run | Scr Mat Min Mat Min Exi Min Mat Gar Mat Gar Fac Gar Fac Gar Fac Gar Fac Gar Fac Gar Fac Gar Ext Cet Arc Hub Gar Res Gar Res Qua Gar Res Gar Tes Gar Peak Influence 767 | . 192 95 363 273 . . 150 562 473 672 384 573 423 186 103 121 76 245 168 159 268 99 142 314 180 224 767 500 141 105 97 77 83 165 143 102 Initial 431 | . . 45 37 82 . . . 97 273 307 352 133 300 130 79 23 52 53 89 9 72 28 30 3 91 63 156 431 103 47 52 11 38 . 92 45 Average 173 | . 110 64 186 186 . . 48 422 379 508 287 389 283 143 57 77 64 177 93 96 124 38 35 182 177 139 641 366 57 71 36 38 35 52 40 64 Maximum Alert Level 3 | . . . 1 1 . . . 2 2 2 1 2 2 . . . . 1 . . 1 . . 1 . 1 3 2 . . . . . . . . Low Security (%) 70 | . 100 100 57 60 . 100 100 8 . . 24 17 11 100 100 100 100 43 100 100 80 100 100 58 100 80 3 2 100 100 100 100 100 100 100 100 Level 1 15 | . . . 42 40 . . . 13 56 26 75 31 86 . . . . 56 . . 19 . . 41 . 19 . 48 . . . . . . . . Level 2 11 | . . . . . . . . 77 43 73 . 51 1 . . . . . . . . . . . . . 56 48 . . . . . . . . Level 3 1 | . . . . . . . . . . . . . . . . . . . . . . . . . . . 38 . . . . . . . . . Level 4 . | . . . . . . . . . . . . . . . . . . . . . . . . . . . . . . . . . . . . . Level 5 . | . . . . . . . . . . . . . . . . . . . . . . . . . . . . . . . . . . . . . High Security . | . . . . . . . . . . . . . . . . . . . . . . . . . . . . . . . . . . . . . Max Security . | . . . . . . . . . . . . . . . . . . . . . . . . . . . . . . . . . . . . . Squads Dispatched 32 | . 2 . . 1 . . 1 . 2 . 2 . 2 . . . . . 1 . 5 . 2 . . 2 . 5 . . 2 . 1 . 4 . Investigation 8 | . 1 . . 1 . . . . . . . . . . . . . . . . 1 . 1 . . . . 2 . . . . . . 2 . Extermination 8 | . . . . . . . . . . . 1 . 1 . . . . . 1 . 1 . . . . 1 . . . . 1 . 1 . 1 . Reinforcement 13 | . 1 . . . . . 1 . 2 . 1 . 1 . . . . . . . . . 1 . . 1 . 3 . . 1 . . . 1 . Assault . | . . . . . . . . . . . . . . . . . . . . . . . . . . . . . . . . . . . . . Garrison 3 | . . . . . . . . . . . . . . . . . . . . . 3 . . . . . . . . . . . . . . . Intercept . | . . . . . . . . . . . . . . . . . . . . . . . . . . . . . . . . . . . . . Searches Triggered . | . . . . . . . . . . . . . . . . . . . . . . . . . . . . . . . . . . . . . Construction Impeded 1 | . . . . . . . . . 1 . . . . . . . . . . . . . . . . . . . . . . . . . . . Haulers Reinforced 1 | . . . . . . . . . . . . . . . . . . . . . . . . . . . . 1 . . . . . . . . Active Scanning Responses . | . . . . . . . . . . . . . . . . . . . . . . . . . . . . . . . . . . . . . Cargo Convoy Interrupts . | . . . . . . . . . . . . . . . . . . . . . . . . . . . . . . . . . . . . . Alert ID Control Effect 139 | . . . . . . . . . . . . 2 4 11 . . 1 2 2 3 7 9 7 3 1 2 1 3 19 7 16 5 22 10 2 . Stealth | -11 -10 -10 -9 -9 -9 -8 -8 -8 -8 -8 -7 -7 -7 -7 -6 -6 -6 -6 -5 -5 -4 -4 -4 -4 -4 -4 -4 -3 -3 -3 -3 -3 -2 -2 -2 -2 --------- Run | Scr Mat Min Mat Min Exi Min Mat Gar Mat Gar Fac Gar Fac Gar Fac Gar Fac Gar Fac Gar Fac Gar Ext Cet Arc Hub Gar Res Gar Res Qua Gar Res Gar Tes Gar Distress Signals 26 | . 3 . 2 . . . 1 . . . . . 1 . 1 . . . . . 3 . . 1 . 2 . 5 . 1 1 . 5 . . . Communications Jammed 894 | . . . . . . . . . . . . . 18 . . . . . . . 9 . 162 495 . 3 . 154 . . 1 . 35 . 17 . Distress Signals 891 | . . . . . . . . . . . . . 18 . . . . . . . 8 . 162 495 . 3 . 154 . . 1 . 33 . 17 . Times Spotted 560 | . 13 2 24 9 . . 8 12 7 13 8 24 12 18 14 13 5 24 5 31 15 22 28 22 1 8 22 12 38 8 22 28 30 35 23 4 Peak Tracking Total 8 | . 3 2 8 4 . . 6 5 3 4 4 5 4 4 7 5 3 7 3 7 5 5 4 5 1 3 6 4 5 2 4 7 7 4 6 2 Tactical Retreats 25 | . . . 1 . . . 2 1 . 1 . 2 . . 3 4 . 1 . 3 2 . . 1 . . . . . . . 1 . 2 1 . Traps | -11 -10 -10 -9 -9 -9 -8 -8 -8 -8 -8 -7 -7 -7 -7 -6 -6 -6 -6 -5 -5 -4 -4 -4 -4 -4 -4 -4 -3 -3 -3 -3 -3 -2 -2 -2 -2 ------- Run | Scr Mat Min Mat Min Exi Min Mat Gar Mat Gar Fac Gar Fac Gar Fac Gar Fac Gar Fac Gar Fac Gar Ext Cet Arc Hub Gar Res Gar Res Qua Gar Res Gar Tes Gar Traps Triggered 36 | . 2 . 1 . . . . 1 . . . 5 . 1 1 1 . 2 . 1 . 8 . . . . . . 2 . . 3 . 6 1 1 Indirectly . | . . . . . . . . . . . . . . . . . . . . . . . . . . . . . . . . . . . . . Trap Hack Attempts . | . . . . . . . . . . . . . . . . . . . . . . . . . . . . . . . . . . . . . Triggered . | . . . . . . . . . . . . . . . . . . . . . . . . . . . . . . . . . . . . . Disarmed . | . . . . . . . . . . . . . . . . . . . . . . . . . . . . . . . . . . . . . Reprogrammed 4 | . . . . . . . . . 4 . . . . . . . . . . . . . . . . . . . . . . . . . . . Reused 3 | . . . . . . . . . . . . 3 . . . . . . . . . . . . . . . . . . . . . . . . Traps Extracted 4 | . . . . . . . . . 4 . . . . . . . . . . . . . . . . . . . . . . . . . . . Installed 4 | . . . . . . . . . . . . 4 . . . . . . . . . . . . . . . . . . . . . . . . Triggered 4 | . . . . . . . . . . . . 3 . . . . . . . . 1 . . . . . . . . . . . . . . . Most Traps Carried 4 | . . . . . . . . . 4 4 4 4 . . . . . . . . . . . . . . . . . . . . . . . . Power Sources Rigged 11 | . . . . . . . . . . 1 1 8 . . 1 . . . . . . . . . . . . . . . . . . . . . Exploded 10 | . . . . . . . . . . 3 . 6 . . . 1 . . . . . . . . . . . . . . . . . . . . Machines | -11 -10 -10 -9 -9 -9 -8 -8 -8 -8 -8 -7 -7 -7 -7 -6 -6 -6 -6 -5 -5 -4 -4 -4 -4 -4 -4 -4 -3 -3 -3 -3 -3 -2 -2 -2 -2 ---------- Run | Scr Mat Min Mat Min Exi Min Mat Gar Mat Gar Fac Gar Fac Gar Fac Gar Fac Gar Fac Gar Fac Gar Ext Cet Arc Hub Gar Res Gar Res Qua Gar Res Gar Tes Gar Machines Disabled 67 | . 1 . 2 . . . 1 3 . 3 . 3 4 1 . 1 . 2 . 3 . 4 . 1 3 . 4 . 6 . 9 5 . 5 . 6 Max in Single Turn 5 | . 1 . 1 . . . 1 1 . 1 . 1 2 1 . 1 . 1 . 1 . 1 . . . . 1 . 1 . 1 1 . 1 . 5 Garrison Relay 34 | . . . . . . . . 2 . 1 . 3 . 1 . 1 . 2 . 3 . 4 . . . . 4 . 4 . . 4 . 4 . 1 Machines Sabotaged . | . . . . . . . . . . . . . . . . . . . . . . . . . . . . . . . . . . . . . Garrisons Compromised . | . . . . . . . . . . . . . . . . . . . . . . . . . . . . . . . . . . . . . Overloaded Fab Kills . | . . . . . . . . . . . . . . . . . . . . . . . . . . . . . . . . . . . . . Hacking | -11 -10 -10 -9 -9 -9 -8 -8 -8 -8 -8 -7 -7 -7 -7 -6 -6 -6 -6 -5 -5 -4 -4 -4 -4 -4 -4 -4 -3 -3 -3 -3 -3 -2 -2 -2 -2 --------- Run | Scr Mat Min Mat Min Exi Min Mat Gar Mat Gar Fac Gar Fac Gar Fac Gar Fac Gar Fac Gar Fac Gar Ext Cet Arc Hub Gar Res Gar Res Qua Gar Res Gar Tes Gar Machines Accessed 70 | . 5 . 3 1 1 . 2 . 4 . 5 . 2 . 2 . 3 . 5 . 2 . 9 2 . 1 . 3 . 4 7 . 4 . 5 . Terminals 47 | . 4 . 3 . . . 1 . 3 . 4 . 1 . 1 . 2 . 3 . 1 . 9 2 . . . . . 2 6 . 2 . 3 . Fabricators 3 | . . . . . . . . . . . . . . . . . . . 1 . . . . . . . . . . 1 . . 1 . . . Repair Stations . | . . . . . . . . . . . . . . . . . . . . . . . . . . . . . . . . . . . . . Recycling Units 1 | . 1 . . . . . . . . . . . . . . . . . . . . . . . . . . . . . . . . . . . Scanalyzers 3 | . . . . . . . . . . . . . . . . . . . . . . . . . . . . 2 . . . . . . 1 . Garrison Access 14 | . . . . . . . 1 . 1 . 1 . 1 . 1 . 1 . 1 . 1 . . . . 1 . 1 . 1 1 . 1 . 1 . Total Hacks 130 | . 9 . 8 1 1 . 4 . 8 . 7 . 3 . 4 . 5 . 12 . 4 . 15 4 . 2 . 5 . 9 10 . 9 . 10 . Successful 63 | . 4 . 3 1 1 . 3 . 4 . 3 . 2 . 1 . 2 . 8 . 1 . 6 1 . 2 . 3 . 5 4 . 5 . 4 . Failed 67 | . 5 . 5 . . . 1 . 4 . 4 . 1 . 3 . 3 . 4 . 3 . 9 3 . . . 2 . 4 6 . 4 . 6 . Catastrophic 14 | . 1 . 2 . . . . . . . 1 . 1 . 1 . 1 . 1 . 1 . 1 1 . . . . . . 1 . 1 . 1 . Database Lockouts . | . . . . . . . . . . . . . . . . . . . . . . . . . . . . . . . . . . . . . Manual 71 | . 8 . 8 . 1 . 2 . 7 . 4 . 2 . . . 3 . 11 . 3 . . 1 . 1 . 1 . 6 1 . 6 . 6 . Terminals 92 | . 8 . 8 . . . 2 . 7 . 6 . 2 . 3 . 4 . 8 . 2 . 15 4 . . . . . 5 8 . 5 . 5 . Fabricators 8 | . . . . . . . . . . . . . . . . . . . 3 . . . . . . . . . . 2 . . 3 . . . Repair Stations . | . . . . . . . . . . . . . . . . . . . . . . . . . . . . . . . . . . . . . Recycling Units 1 | . 1 . . . . . . . . . . . . . . . . . . . . . . . . . . . . . . . . . . . Scanalyzers 5 | . . . . . . . . . . . . . . . . . . . . . . . . . . . . 3 . . . . . . 2 . Garrison Access 22 | . . . . . . . 2 . 1 . 1 . 1 . 1 . 1 . 1 . 2 . . . . 2 . 2 . 2 2 . 1 . 3 . Terminal Hacks 27 | . 3 . 3 1 1 . . . 2 . 1 . . . . . . . 1 . . . 6 1 . . . . . 3 3 . 2 . . . Record 2 | . . . . . . . . . . . . . . . . . . . . . . . . 1 . . . . . . 1 . . . . . Robot Analysis 4 | . 2 . 2 . . . . . . . . . . . . . . . . . . . . . . . . . . . . . . . . . Open Door 7 | . . . . 1 . . . . . . . . . . . . . . . . . . 5 . . . . . . . 1 . . . . . Branch Access Points 4 | . 1 . 1 . . . . . . . . . . . . . . . . . . . . . . . . . . 1 . . 1 . . . Machine Index 1 | . . . . . . . . . . . . . . . . . . . . . . . . . . . . . . 1 . . . . . . Terminal Index 5 | . . . . . . . . . 1 . 1 . . . . . . . 1 . . . . . . . . . . . 1 . 1 . . . Locate Traps 1 | . . . . . . . . . . . . . . . . . . . . . . . 1 . . . . . . . . . . . . . Reprogram Traps 1 | . . . . . . . . . 1 . . . . . . . . . . . . . . . . . . . . . . . . . . . Registered Components 1 | . . . . . . . . . . . . . . . . . . . . . . . . . . . . . . 1 . . . . . . EX-Prototype ID Bank 1 | . . . . . 1 . . . . . . . . . . . . . . . . . . . . . . . . . . . . . . . Fabricator Hacks . | . . . . . . . . . . . . . . . . . . . . . . . . . . . . . . . . . . . . . Repair Station Hacks . | . . . . . . . . . . . . . . . . . . . . . . . . . . . . . . . . . . . . . Recycling Unit Hacks . | . . . . . . . . . . . . . . . . . . . . . . . . . . . . . . . . . . . . . Scanalyzer 2 | . . . . . . . . . . . . . . . . . . . . . . . . . . . . 2 . . . . . . . . Insert Component 1 | . . . . . . . . . . . . . . . . . . . . . . . . . . . . 1 . . . . . . . . Analyze 1 | . . . . . . . . . . . . . . . . . . . . . . . . . . . . 1 . . . . . . . . Garrison Access Hacks 13 | . . . . . . . 1 . 1 . 1 . 1 . 1 . 1 . 1 . 1 . . . . 1 . 1 . . 1 . 1 . 1 . Unlock Access 13 | . . . . . . . 1 . 1 . 1 . 1 . 1 . 1 . 1 . 1 . . . . 1 . 1 . . 1 . 1 . 1 . Unauthorized Hacks 21 | . 1 . . . . . 2 . 1 . 1 . 1 . . . 1 . 6 . . . . . . 1 . . . 2 . . 2 . 3 . Terminals 12 | . . . . . . . 2 . 1 . 1 . 1 . . . 1 . 3 . . . . . . . . . . 1 . . 1 . 1 . Track 1 | . . . . . . . . . . . . . 1 . . . . . . . . . . . . . . . . . . . . . . . Assimilate 1 | . . . . . . . 1 . . . . . . . . . . . . . . . . . . . . . . . . . . . . . Botnet 7 | . . . . . . . 1 . 1 . 1 . . . . . 1 . 2 . . . . . . . . . . 1 . . . . . . Operators 3 | . . . . . . . . . . . . . . . . . . . 1 . . . . . . . . . . . . . 1 . 1 . Fabricators 4 | . . . . . . . . . . . . . . . . . . . 3 . . . . . . . . . . . . . 1 . . . Liberate 1 | . . . . . . . . . . . . . . . . . . . 1 . . . . . . . . . . . . . . . . . Fabnet 1 | . . . . . . . . . . . . . . . . . . . 1 . . . . . . . . . . . . . . . . . Haulers 2 | . . . . . . . . . . . . . . . . . . . 1 . . . . . . . . . . . . . 1 . . . Repair Stations . | . . . . . . . . . . . . . . . . . . . . . . . . . . . . . . . . . . . . . Recycling Units 1 | . 1 . . . . . . . . . . . . . . . . . . . . . . . . . . . . . . . . . . . Tunnel 1 | . 1 . . . . . . . . . . . . . . . . . . . . . . . . . . . . . . . . . . . Scanalyzers . | . . . . . . . . . . . . . . . . . . . . . . . . . . . . . . . . . . . . . Garrison Access 4 | . . . . . . . . . . . . . . . . . . . . . . . . . . 1 . . . 1 . . . . 2 . Restock 1 | . . . . . . . . . . . . . . . . . . . . . . . . . . . . . . . . . . . 1 . Reprogram 3 | . . . . . . . . . . . . . . . . . . . . . . . . . . 1 . . . 1 . . . . 1 . Data Cores Recovered 1 | . . . . . . . . . . . . . . . . . . . . . . . . . . . . . . 1 . . . . . . Used . | . . . . . . . . . . . . . . . . . . . . . . . . . . . . . . . . . . . . . Hacking Detections 58 | . 3 . 3 . . . 2 . 4 . 5 . 2 . 2 . 2 . 4 . 2 . 4 3 . 1 . 3 . 4 5 . 4 . 5 . Full Trace Events 4 | . . . 1 . . . . . . . . . . . . . . . . . 1 . 1 . . . . . . . . . . . 1 . Feedback Events 1 | . . . . . . . . . . . . . . . . . . . . . . . . . . . . . . . . . . . 1 . Corruption 1 | . . . . . . . . . . . . . . . . . . . . . . . . . . . . . . . . . . . 1 . Feedback Blocked . | . . . . . . . . . . . . . . . . . . . . . . . . . . . . . . . . . . . . . Robot Schematics Acquired 5 | . . . . . . . . . . . . . . . . . . . . . . . . . . . . . . . 5 . . . . . Robots Built . | . . . . . . . . . . . . . . . . . . . . . . . . . . . . . . . . . . . . . Authchips . | . . . . . . . . . . . . . . . . . . . . . . . . . . . . . . . . . . . . . Time . | . . . . . . . . . . . . . . . . . . . . . . . . . . . . . . . . . . . . . Total Robot Build Rating . | . . . . . . . . . . . . . . . . . . . . . . . . . . . . . . . . . . . . . Part Schematics Acquired 48 | . . . . . . . . . . . . . . . . . . . . . . . . . . . . 1 . . 47 . . . . . Parts Built . | . . . . . . . . . . . . . . . . . . . . . . . . . . . . . . . . . . . . . Authchips . | . . . . . . . . . . . . . . . . . . . . . . . . . . . . . . . . . . . . . Time . | . . . . . . . . . . . . . . . . . . . . . . . . . . . . . . . . . . . . . Total Part Build Rating . | . . . . . . . . . . . . . . . . . . . . . . . . . . . . . . . . . . . . . Parts Repaired . | . . . . . . . . . . . . . . . . . . . . . . . . . . . . . . . . . . . . . Time . | . . . . . . . . . . . . . . . . . . . . . . . . . . . . . . . . . . . . . Parts Recycled . | . . . . . . . . . . . . . . . . . . . . . . . . . . . . . . . . . . . . . Recycled Matter . | . . . . . . . . . . . . . . . . . . . . . . . . . . . . . . . . . . . . . Retrieved Matter . | . . . . . . . . . . . . . . . . . . . . . . . . . . . . . . . . . . . . . Retrieved Components . | . . . . . . . . . . . . . . . . . . . . . . . . . . . . . . . . . . . . . Parts Scanalyzed 1 | . . . . . . . . . . . . . . . . . . . . . . . . . . . . 1 . . . . . . . . Part Schematics Acquired 1 | . . . . . . . . . . . . . . . . . . . . . . . . . . . . 1 . . . . . . . . Parts Damaged . | . . . . . . . . . . . . . . . . . . . . . . . . . . . . . . . . . . . . . Bothacking | -11 -10 -10 -9 -9 -9 -8 -8 -8 -8 -8 -7 -7 -7 -7 -6 -6 -6 -6 -5 -5 -4 -4 -4 -4 -4 -4 -4 -3 -3 -3 -3 -3 -2 -2 -2 -2 ------------ Run | Scr Mat Min Mat Min Exi Min Mat Gar Mat Gar Fac Gar Fac Gar Fac Gar Fac Gar Fac Gar Fac Gar Ext Cet Arc Hub Gar Res Gar Res Qua Gar Res Gar Tes Gar Used RIF Installer 13 | . . . . . . . . 1 . 1 . 1 . 1 . 1 . 1 . 1 . 1 . . . . 1 . 1 . . 1 . 1 . 1 Hotswap 1 | . . . . . . . . . . . . . . . . . . 1 . . . . . . . . . . . . . . . . . . Command Fork 1 | . . . . . . . . . . . . . . . . . . . . . . . . . . . . . . . . . . 1 . . Threat Obfuscator 2 | . . . . . . . . . . . . . . 1 . 1 . . . . . . . . . . . . . . . . . . . . Signal Jammer 1 | . . . . . . . . . . . . 1 . . . . . . . . . . . . . . . . . . . . . . . . Zone Cloak 2 | . . . . . . . . . . . . . . . . . . . . 1 . . . . . . . . 1 . . . . . . . Robot Detection 1 | . . . . . . . . . . . . . . . . . . . . . . . . . . . . . . . . 1 . . . . Alert ID Control 1 | . . . . . . . . . . 1 . . . . . . . . . . . . . . . . . . . . . . . . . . Program Shield 1 | . . . . . . . . . . . . . . . . . . . . . . . . . . . . . . . . . . . . 1 Autoassimilate 1 | . . . . . . . . . . . . . . . . . . . . . . . . . . . 1 . . . . . . . . . Crosswire 1 | . . . . . . . . . . . . . . . . . . . . . . 1 . . . . . . . . . . . . . . Robots Hacked 248 | . . . . . . . . . . . . 5 11 5 1 . 1 4 4 14 10 13 13 8 9 3 6 16 31 7 17 19 19 15 17 . Non-combat 60 | . . . . . . . . . . . . . 7 . . . . . 3 . 6 . 1 . 9 1 . 13 . 2 5 . 4 . 9 . Combat 188 | . . . . . . . . . . . . 5 4 5 1 . 1 4 1 14 4 13 12 8 . 2 6 3 31 5 12 19 15 15 8 . Autoassimilated 39 | . . . . . . . . . . . . . . . . . . . . . . . . . . . 1 2 11 3 2 5 7 6 2 . Robot Hacks Applied 246 | . . . . . . . . . . . . 5 17 5 2 . 2 4 5 14 12 13 13 8 9 3 5 16 22 5 23 16 15 11 21 . parse_system 7 | . . . . . . . . . . . . . 1 . . . . . . . . . . 1 . . . . . . 3 . 1 . 1 . no_distress 3 | . . . . . . . . . . . . . . . . . . . . . . . . . . . . . . . . . . . 3 . ignore_repairs 2 | . . . . . . . . . . . . . 1 . . . . . . . . . . . . . . 1 . . . . . . . . map_walls 5 | . . . . . . . . . . . . . 2 . . . . . 1 . . . . . . . . . . . . . . . 2 . map_earth 1 | . . . . . . . . . . . . . . . . . . . 1 . . . . . . . . . . . . . . . . . drop_inventory 8 | . . . . . . . . . . . . . 1 . . . . . . . 1 . . . . 1 . 2 . . 2 . . . 1 . find_recycling 1 | . . . . . . . . . . . . . . . . . . . . . . . . . . . . . . 1 . . . . . . ignore_parts 20 | . . . . . . . . . . . . . . . . . . . . . 5 . . . . . . 9 . 1 . . 4 . 1 . map_route 11 | . . . . . . . . . . . . . 3 . . . . . 1 . 2 . . . . . . 1 . . 1 . 1 . 2 . relay_feed 4 | . . . . . . . . . . . . . 2 . . . . . 1 . . . . . . . . . . . . . . . 1 . find_scanalyzer 1 | . . . . . . . . . . . . . . . . . . . . . . . . . . . . . . . 1 . . . . . disable_scanner 5 | . . . . . . . . . . . . . . . . . . . . . . . . . . . . . . . 3 . . . 2 . locate_prototypes 2 | . . . . . . . . . . . . . . . . . . . . . . . . . . . . . . . 1 . . . 1 . report_schematics 4 | . . . . . . . . . . . . . . . . . . . . . . . . . . . . . . . 4 . . . . . find_garrison 4 | . . . . . . . . . . . . . 1 . . . 1 . . . . . . . . 1 . . . . . . 1 . . . scatter_targeting 3 | . . . . . . . . . . . . . 1 1 . . . . . . . . . . . . . . 1 . . . . . . . broadcast_data 1 | . . . . . . . . . . . . . . . . . . . . . . . . . . . . 1 . . . . . . . . disrupt_area 4 | . . . . . . . . . . . . . . . . . . . . . 1 1 . . . . . 1 . . . . . . 1 . wipe_record 6 | . . . . . . . . . . . . 1 . . 2 . . . . . . . . . . . . . . . . 1 . 2 . . reboot_system 6 | . . . . . . . . . . . . 2 . . . . . . . 2 . . 1 . . . . . . . 1 . . . . . overwrite_iff 41 | . . . . . . . . . . . . . . 1 . . 1 . . 7 . 7 2 . . . 2 1 9 . 1 3 2 3 2 . formatsys_low 19 | . . . . . . . . . . . . . 1 . . . . . . . 1 . 1 . 9 . . . . 1 4 . . . 2 . formatsys_high 88 | . . . . . . . . . . . . 2 4 3 . . . 4 1 5 2 5 9 7 . 1 3 . 12 2 2 12 6 6 2 . Relay Couplers Released 131 | . . . . . . . . 8 . 4 . 12 . 3 . 4 . 7 . 10 . 16 . . . . 13 4 15 . . 15 . 14 . 6 Machine Destruction 124 | . . . . . . . . 8 . 4 . 12 . 3 . 4 . 7 . 10 . 16 . . . . 13 . 15 . . 15 . 14 . 3 Programmers 7 | . . . . . . . . . . . . . . . . . . . . . . . . . . . . 4 . . . . . . . 3 Attached 85 | . . . . . . . . 1 . . . 4 3 2 2 3 . 4 2 7 2 5 1 1 1 . 6 3 10 . 3 8 3 7 6 1 Crosswired 35 | . . . . . . . . . . . . . . . . . . . . . . 12 . . . . 6 2 5 . . 6 . 3 . 1 Fabnet Peak Effective % 3 | . . . . . . . . . . . . . . . . . . . . . 3 3 3 3 3 3 3 1 1 1 1 1 . . . . Autooverrided 4 | . . . . . . . . . . . . . . . . . . . . . 1 . 1 . . 1 . . . . . 1 . . . . Robots Rewired 28 | . . . . . . . . . . . . . . . . . 1 . 1 6 2 . 18 . . . . . . . . . . . . . Allies Hacked 14 | . . . . . . . . . . . . . . . . . . . . . 2 1 . . . . 2 . . 1 2 1 3 1 . 1 Hacks Repelled . | . . . . . . . . . . . . . . . . . . . . . . . . . . . . . . . . . . . . . Allies | -11 -10 -10 -9 -9 -9 -8 -8 -8 -8 -8 -7 -7 -7 -7 -6 -6 -6 -6 -5 -5 -4 -4 -4 -4 -4 -4 -4 -3 -3 -3 -3 -3 -2 -2 -2 -2 -------- Run | Scr Mat Min Mat Min Exi Min Mat Gar Mat Gar Fac Gar Fac Gar Fac Gar Fac Gar Fac Gar Fac Gar Ext Cet Arc Hub Gar Res Gar Res Qua Gar Res Gar Tes Gar Total Allies 231 | . . . . 2 . . . . . . . 2 5 4 . . 1 4 2 18 6 12 38 12 9 2 6 3 31 6 9 19 14 15 10 1 Largest Group 27 | . . . . 2 2 . . . . . . 1 5 6 2 . 1 2 1 8 11 8 24 24 27 26 14 9 15 12 17 11 15 6 3 2 Highest-Rated Group 1365 | . . . . 39 39 . . . . . . 20 122 138 29 . 30 58 49 392 489 308 1108 1340 1365 1321 747 443 620 586 785 534 827 337 127 140 Highest-Rated Ally 159 | . . . . 31 31 . . . . . . 20 32 32 17 . 30 30 49 68 68 58 159 135 96 96 96 96 64 64 64 116 69 69 82 82 Total Orders 49 | . . . . . . . . . . . . . 2 . 1 . . . 2 4 2 . 6 8 . 2 6 . 3 3 3 3 . 3 1 . STAY 25 | . . . . . . . . . . . . . 1 . 1 . . . 1 3 1 . 3 4 . 1 5 . 1 . . 2 . 2 . . FOLLOW 18 | . . . . . . . . . . . . . 1 . . . . . 1 1 1 . 3 4 . 1 1 . 2 1 . 1 . 1 . . AID 2 | . . . . . . . . . . . . . . . . . . . . . . . . . . . . . . 2 . . . . . . DROP 2 | . . . . . . . . . . . . . . . . . . . . . . . . . . . . . . . 1 . . . 1 . PICKUP 2 | . . . . . . . . . . . . . . . . . . . . . . . . . . . . . . . 2 . . . . . Ally Attacks 1364 | . . . . 2 . . . . . . . 5 21 50 1 . 3 19 2 28 83 61 131 142 26 63 83 55 137 40 116 38 168 57 28 5 Total Damage 42784 | . . . . 41 . . . . . . . 89 385 1088 . . 158 338 75 715 2883 1829 4671 4789 837 1817 2700 2069 3765 1481 3481 1339 5219 2227 546 242 Kills 240 | . . . . . . . . . . . . 2 4 11 . . 1 2 2 5 16 15 23 27 4 8 25 9 21 7 16 5 24 10 2 1 Allies Corrupted 9 | . . . . . . . . . . . . . . . . . . . . . . 1 . 1 . . 1 . . . 5 . 1 . . . Allies Melted 1 | . . . . . . . . . . . . . . . . . . . . . . . . . . . . . . . . . . 1 . . Intel | -11 -10 -10 -9 -9 -9 -8 -8 -8 -8 -8 -7 -7 -7 -7 -6 -6 -6 -6 -5 -5 -4 -4 -4 -4 -4 -4 -4 -3 -3 -3 -3 -3 -2 -2 -2 -2 ------- Run | Scr Mat Min Mat Min Exi Min Mat Gar Mat Gar Fac Gar Fac Gar Fac Gar Fac Gar Fac Gar Fac Gar Ext Cet Arc Hub Gar Res Gar Res Qua Gar Res Gar Tes Gar Robot Analysis Total 4 | . 2 . 2 . . . . . . . . . . . . . . . . . . . . . . . . . . . . . . . . . Derelict Logs Recovered 2 | . . 1 . 1 . . . . . . . . . . . . . . . . . . . . . . . . . . . . . . . . Drone Launches . | . . . . . . . . . . . . . . . . . . . . . . . . . . . . . . . . . . . . . Drone Recoveries . | . . . . . . . . . . . . . . . . . . . . . . . . . . . . . . . . . . . . . Exploration | -11 -10 -10 -9 -9 -9 -8 -8 -8 -8 -8 -7 -7 -7 -7 -6 -6 -6 -6 -5 -5 -4 -4 -4 -4 -4 -4 -4 -3 -3 -3 -3 -3 -2 -2 -2 -2 ------------- Run | Scr Mat Min Mat Min Exi Min Mat Gar Mat Gar Fac Gar Fac Gar Fac Gar Fac Gar Fac Gar Fac Gar Ext Cet Arc Hub Gar Res Gar Res Qua Gar Res Gar Tes Gar Turns Passed 27585 | . 618 261 826 595 295 182 122 806 288 607 927 1695 909 564 773 372 364 606 595 2228 458 1039 1832 718 337 331 1323 821 993 354 1454 1101 428 1317 1199 247 Spaces Moved 17799 | 1 347 148 438 336 228 145 59 469 171 395 464 752 418 388 497 275 316 714 778 1420 451 753 1138 409 178 200 762 514 718 260 948 709 282 849 765 104 Core 34 | . . . . . . . . . . . . . . . . . . 5 3 . . . . . . . . . . . . . . . 26 . Treads 4980 | . 288 148 438 336 . . 16 469 171 395 295 14 . . . . . . . 821 . . . 255 178 200 762 194 . . . . . . . . Legs 8830 | 1 59 . . . . . . . . . . 597 418 388 497 60 . . . 58 . 631 1138 154 . . . 320 718 260 948 709 282 849 667 76 Wheels 754 | . . . . . 228 145 43 . . . 169 141 . . . . . . . . . . . . . . . . . . . . . . . 28 Hover 2564 | . . . . . . . . . . . . . . . . 215 316 119 728 541 451 122 . . . . . . . . . . . . 72 . Flight 637 | . . . . . . . . . . . . . . . . . . 590 47 . . . . . . . . . . . . . . . . . Fastest Speed 26 | 120 120 160 160 160 125 125 140 145 145 145 110 110 190 120 120 52 56 26 26 58 53 60 120 120 160 160 160 120 120 120 120 120 120 112 32 125 Average Speed 126 | 120 153 160 160 165 125 125 163 156 145 145 173 178 190 122 120 91 100 44 57 127 58 110 120 144 160 160 160 135 120 120 120 121 120 119 115 200 Slowest Speed 700 | 120 160 160 240 240 125 125 232 225 145 145 305 400 190 190 122 123 111 700 200 190 60 126 120 160 160 160 160 160 120 120 120 190 120 190 190 260 Overloaded Moves 12 | . . . . . . . . . . . . . . . . . . . . . . . . . . . . . . . . . . . 12 . Propulsion Burnouts . | . . . . . . . . . . . . . . . . . . . . . . . . . . . . . . . . . . . . . Robots Hopped 3 | . . . . . . . . . . . . . . . . . . 2 1 . . . . . . . . . . . . . . . . . Cave-ins Triggered 1 | . . . . . . . . . . . 1 . . . . . . . . . . . . . . . . . . . . . . . . . Exploration Rate (%) 47 | 2 64 42 51 68 60 51 11 47 17 72 13 64 18 70 12 39 11 69 17 81 8 80 75 73 90 16 85 21 77 13 87 81 13 79 39 30 Regions Visited 36 Branch Regions 10 Pre-discovered Areas 1 | . 1 . . . . . . . . . . . . . . . . . . . . . . . . . . . . . . . . . . . Known Exits Taken 16 | . 1 . 1 . . . 1 . 1 . 1 . 1 . 1 . 1 . 1 . 1 . . . . 1 . 1 . 1 1 . 1 . 1 . Unknown Exits Taken 8 | 1 . 1 . 1 1 1 . . . . . . . . . . . . . . . . 1 1 1 . . . . . . . . . . . Scrap Searched 1 | . . . . 1 . . . . . . . . . . . . . . . . . . . . . . . . . . . . . . . . Spaces Dug 82 | . . . . . . . 15 . 8 . 8 . 24 . 7 . . . . . . . 3 . . . . 5 . . . . . 12 . . Terrain Destroyed 516 | . 4 . 10 41 . . 25 . 18 . 13 . 37 20 7 . . 33 . 7 . . 4 . . . . 5 . . . 7 . 16 2 267 Melee 23 | . . . . . . . . . . . 3 . . . 7 . . . . . . . 3 . . . . 5 . . . . . 5 . . Projectile 69 | . . . . . . . 25 . 18 . 10 . . . . . . 1 . . . . 1 . . . . . . . . . . 11 2 1 AOE 422 | . 4 . 10 41 . . . . . . . . 37 20 . . . 31 . 6 . . . . . . . . . . . 7 . . . 266 Terrain Rammed . | . . . . . . . . . . . . . . . . . . . . . . . . . . . . . . . . . . . . . Walls Destroyed . | . . . . . . . . . . . . . . . . . . . . . . . . . . . . . . . . . . . . . Machines Disabled . | . . . . . . . . . . . . . . . . . . . . . . . . . . . . . . . . . . . . . Actions | -11 -10 -10 -9 -9 -9 -8 -8 -8 -8 -8 -7 -7 -7 -7 -6 -6 -6 -6 -5 -5 -4 -4 -4 -4 -4 -4 -4 -3 -3 -3 -3 -3 -2 -2 -2 -2 --------- Run | Scr Mat Min Mat Min Exi Min Mat Gar Mat Gar Fac Gar Fac Gar Fac Gar Fac Gar Fac Gar Fac Gar Ext Cet Arc Hub Gar Res Gar Res Qua Gar Res Gar Tes Gar Total 21533 | . 391 158 500 366 242 145 85 528 207 429 542 988 507 450 603 355 353 932 903 1707 598 920 1539 524 214 209 839 608 832 304 1180 874 340 1048 979 134 Wait 1009 | . . 1 9 1 . . 2 9 8 4 7 40 26 8 25 10 4 79 80 34 51 40 95 82 14 5 29 17 18 20 97 55 6 66 65 2 Move 17765 | . 346 147 437 335 227 144 59 468 171 394 463 751 418 387 497 274 316 709 776 1419 450 752 1137 408 177 199 761 514 717 259 947 708 282 848 764 104 Hop 3 | . . . . . . . . . . . . . . . . . . 2 1 . . . . . . . . . . . . . . . . . Pick Up 207 | . 6 1 5 7 6 . 5 4 1 3 3 22 3 4 7 3 2 8 5 11 4 19 . 4 . . 5 10 10 4 13 11 1 7 13 . Fast Attach 266 | . 3 . 4 . . . 2 3 . 1 7 13 2 1 13 9 7 21 8 42 3 9 9 5 . . 10 11 4 1 7 10 7 20 29 5 Attach 141 | . 2 . 2 2 1 . 1 2 . . 7 7 5 7 6 6 3 14 4 4 5 7 2 2 1 . 2 4 6 3 5 9 4 6 9 3 Detach 46 | . . . . 1 . . . 1 . . 1 2 4 2 3 5 3 5 . . 1 . 2 . . . . 2 . 2 3 . . 3 4 2 Swap 81 | . 2 . 7 4 . . . 2 3 2 1 8 6 3 . . . 3 . 13 2 6 2 . . . . 1 2 1 1 1 1 4 5 1 Drop 238 | . 4 . 1 4 8 . 4 6 . 3 1 18 4 3 11 6 5 16 8 33 2 13 3 8 . . 8 9 7 4 17 3 4 14 8 3 Fire 1028 | . 26 9 34 10 . . 12 23 20 21 37 74 39 18 11 29 11 47 16 84 51 46 27 9 12 3 6 28 54 10 61 40 31 60 61 8 Melee 243 | . . . . . . . . 8 . . 13 18 . 6 29 . . 1 . . . 4 29 6 9 1 16 12 . . 26 29 4 11 21 . Ram 1 | . . . . . . 1 . . . . . . . . . . . . . . . . . . . . . . . . . . . . . . Kick 2 | . . . . . . . . . . . . . . . . . . . . . . . . . . . . . . . 2 . . . . . Crush 9 | . 2 . 1 2 . . . . 4 . . . . . . . . . . . . . . . . . . . . . . . . . . . Escape Stasis 120 | . . . . . . . . 2 . . 1 23 . 11 . 13 . 27 . 2 . 23 . . . . . . 4 . . 3 . 6 . 5 Rewire 359 | . . . . . . . . . . . . . . . . . 2 . 5 65 29 1 233 . 1 1 2 . 10 . 1 5 . 3 . 1 Trap 15 | . . . . . . . . . . 1 1 12 . . 1 . . . . . . . . . . . . . . . . . . . . . Miscellaneous . | . . . . . . . . . . . . . . . . . . . . . . . . . . . . . . . . . . . . . Route ------- -11/Scrapyard -10/Materials (discovered 4 exits: *Mat x2 / *Min x2) -10/Mines -9/Materials (discovered 2 exits: *Mat / *Min) -9/Mines (discovered 3 exits: *Mat x2 / *Exi) -9/Exiles -8/Mines -8/Materials -8/Garrison (discovered 2 exits: *Mat x2) -8/Materials -8/Garrison (discovered 3 exits: *Fac x3) -7/Factory (discovered 2 exits: [*Low] / Gar) -7/Garrison -7/Factory -7/Garrison (discovered 3 exits: *Fac x3) -6/Factory (discovered 2 exits: [*Low] / Gar) -6/Garrison -6/Factory -6/Garrison -5/Factory -5/Garrison (discovered 3 exits: *Fac x3) -4/Factory (discovered 3 exits: Res / [Upp] / Gar) -4/Garrison (discovered 3 exits: *Ext x3) -4/Extension (discovered 2 exits: *Res / *Cet) -4/Cetus (discovered 2 exits: *Res / [*Arc]) -4/Archives (discovered 3 exits: *Res / *Hub x2) -4/Hub_04(d) -4/Garrison (discovered 3 exits: *Res x3) -3/Research (discovered 2 exits: Qua / Gar) -3/Garrison (discovered 3 exits: *Res x3) -3/Research (discovered 3 exits: Arm / *Qua x2) -3/Quarantine (discovered 2 exits: *Res / Gar) -3/Garrison (discovered 3 exits: *Res x3) -2/Research (discovered 3 exits: Tes x2 / Gar) -2/Garrison (discovered 3 exits: *Tes x3) -2/Testing (discovered 2 exits: [Acc] / Gar) -2/Garrison History --------- Turn | Location | Event 1 | -11/Scrapyard | Discovered new exit (range 0) 1 | -11/Scrapyard | Entered Materials 264 | -10/Materials | Discovered new exit (range 7) 317 | -10/Materials | Build established: Mutant 382 | -10/Materials | Discovered new exit (range 10) 604 | -10/Materials | Identified exit to Mines 619 | -10/Materials | Entered Mines 768 | -10/Mines | Core integrity fell below 50% 867 | -10/Mines | Discovered new exit (range 9) 872 | -10/Mines | Learned Materials emergency access door positions 880 | -10/Mines | Entered Materials 880 | -9/Materials | Evolved 2 slots: Utility x2 1220 | -9/Materials | Identified exit to Mines 1401 | -9/Materials | Discovered new exit (range 12) 1706 | -9/Materials | Entered Mines 1713 | -9/Mines | Received a Rocket Launcher from a helpful Derelict 1859 | -9/Mines | Learned Materials garrison access intel 1868 | -9/Mines | Discovered new exit (range 5) 2041 | -9/Mines | Discovered new exit (range 14) 2223 | -9/Mines | Deemed a non-threat by the Exiles lab entrance 2225 | -9/Mines | Discovered new exit (range 5) 2240 | -9/Mines | Met a Derelict shopkeep closing up shop 2301 | -9/Mines | Entered Exiles 2301 | -9/Exiles | Accompanied by 2 allies 2331 | -9/Exiles | Led the pair of lost Derelicts to a safe place 2345 | -9/Exiles | Met 8R-AWN 2364 | -9/Exiles | Met EX-HEX 2398 | -9/Exiles | Met EX-BIN 2415 | -9/Exiles | Aligned with FarCom system 2416 | -9/Exiles | Given EX-Vault access code 2445 | -9/Exiles | Opened EX-Vault 2456 | -9/Exiles | Found XL Autogun Array 2458 | -9/Exiles | Found Cloak of Protection 2464 | -9/Exiles | Found PSU Rigger 2490 | -9/Exiles | Warned to stay clear of 0b10 Research branches 2540 | -9/Exiles | Met EX-DEC 2585 | -9/Exiles | Discovered new exit (range 11) 2596 | -9/Exiles | Stole three prototypes: Cloak of Protection, PSU Rigger, XL Autogun Array 2596 | -9/Exiles | Entered Mines 2761 | -8/Mines | Discovered new exit (range 10) 2778 | -8/Mines | Entered Materials 2778 | -8/Materials | Evolved 2 slots: Weapon x2 2779 | -8/Materials | Loaded intel: 1 garrison access location 2900 | -8/Materials | Identified exit to Garrison 2900 | -8/Materials | Entered Garrison 2962 | -8/Garrison | Triggered checkpoint 2969 | -8/Garrison | Triggered checkpoint 2970 | -8/Garrison | Triggered checkpoint 3084 | -8/Garrison | Triggered checkpoint 3097 | -8/Garrison | Spotted B-75 Beast 3099 | -8/Garrison | Spotted B-75 Beast 3131 | -8/Garrison | Destroyed B-75 Beast 3133 | -8/Garrison | Destroyed B-75 Beast 3170 | -8/Garrison | Discovered new exit (range 15) 3301 | -8/Garrison | Discovered new exit (range 10) 3324 | -8/Garrison | Installed Relay Interface Framework 3339 | -8/Garrison | Build established: Gunner 3380 | -8/Garrison | Triggered checkpoint 3395 | -8/Garrison | Garrison Relay disabled 3538 | -8/Garrison | Triggered checkpoint 3551 | -8/Garrison | Garrison Relay disabled 3704 | -8/Garrison | Build established: Skirmisher 3706 | -8/Garrison | Entered Materials 3994 | -8/Materials | Identified exit to Garrison 3994 | -8/Materials | Entered Garrison 4002 | -8/Garrison | Expanded RIF knowledge: Alert ID Control 4076 | -8/Garrison | Triggered checkpoint 4084 | -8/Garrison | Garrison Relay disabled 4154 | -8/Garrison | Triggered checkpoint 4219 | -8/Garrison | Triggered checkpoint 4240 | -8/Garrison | Triggered checkpoint 4319 | -8/Garrison | Discovered new exit (range 13) 4434 | -8/Garrison | Discovered new exit (range 10) 4575 | -8/Garrison | Discovered new exit (range 15) 4601 | -8/Garrison | Entered Factory 4601 | -7/Factory | Evolved 2 slots: Propulsion x1, Utility x1 4603 | -7/Factory | FarCom data flow suspended 4665 | -7/Factory | Crushed by falling debris 4666 | -7/Factory | System corruption reached 10% 4696 | -7/Factory | Lost 4 parts (1p1n2u) 5398 | -7/Factory | Discovered new exit (range 8) 5528 | -7/Factory | Identified exit to Garrison 5528 | -7/Factory | Entered Garrison 5570 | -7/Garrison | Triggered checkpoint 5610 | -7/Garrison | Triggered checkpoint 5654 | -7/Garrison | Lost 3 parts (1p1n1u) 5794 | -7/Garrison | Lost 4 parts (1p1u2w) 5888 | -7/Garrison | Lost 3 parts (2n1u) 6174 | -7/Garrison | Build established: Bothacker-Mutant 6249 | -7/Garrison | Triggered checkpoint 6254 | -7/Garrison | Triggered checkpoint 6355 | -7/Garrison | Garrison Relay disabled 6439 | -7/Garrison | Core integrity fell below 50% 6580 | -7/Garrison | Discovered new exit (range 9) 6608 | -7/Garrison | Expanded RIF knowledge: Signal Jamming 6682 | -7/Garrison | Triggered checkpoint 6717 | -7/Garrison | Garrison Relay disabled 6908 | -7/Garrison | Triggered checkpoint 6938 | -7/Garrison | Garrison Relay disabled 7223 | -7/Garrison | Entered Factory 8132 | -7/Factory | Identified exit to Garrison 8132 | -7/Factory | Entered Garrison 8132 | -7/Garrison | Accompanied by 5 allies 8168 | -7/Garrison | Triggered checkpoint 8234 | -7/Garrison | Garrison Relay disabled 8286 | -7/Garrison | Triggered checkpoint 8302 | -7/Garrison | Triggered checkpoint 8311 | -7/Garrison | Core integrity fell below 20% 8441 | -7/Garrison | Discovered new exit (range 13) 8561 | -7/Garrison | Discovered new exit (range 9) 8610 | -7/Garrison | Triggered checkpoint 8660 | -7/Garrison | Discovered new exit (range 15) 8683 | -7/Garrison | Expanded RIF knowledge: Threat Obfuscation 8696 | -7/Garrison | Entered Factory 8696 | -6/Factory | Accompanied by 2 allies 8696 | -6/Factory | Evolved 2 slots: Propulsion x1, Utility x1 8857 | -6/Factory | Discovered new exit (range 6) 8991 | -6/Factory | Build established: Botlord-Mutant 9181 | -6/Factory | Lost 3 parts (3u) 9347 | -6/Factory | Build established: Bothacker-Mutant 9469 | -6/Factory | Identified exit to Garrison 9469 | -6/Factory | Entered Garrison 9481 | -6/Garrison | Lost 4 parts (1p2u1w) 9604 | -6/Garrison | Triggered checkpoint 9613 | -6/Garrison | Garrison Relay disabled 9817 | -6/Garrison | Discovered new exit (range 10) 9837 | -6/Garrison | Expanded RIF knowledge: Threat Obfuscation 9841 | -6/Garrison | Entered Factory 9984 | -6/Factory | Build established: Botlord-Mutant 10205 | -6/Factory | Identified exit to Garrison 10205 | -6/Factory | Entered Garrison 10205 | -6/Garrison | Accompanied by 1 ally 10211 | -6/Garrison | Expanded RIF knowledge: Hotswap 10250 | -6/Garrison | Triggered checkpoint 10281 | -6/Garrison | Garrison Relay disabled 10304 | -6/Garrison | Triggered checkpoint 10346 | -6/Garrison | Triggered checkpoint 10463 | -6/Garrison | Core integrity fell below 50% 10500 | -6/Garrison | Lost 11 parts (1p3n2u5w) 10502 | -6/Garrison | Destroyed 7 combat bots 10568 | -6/Garrison | Triggered checkpoint 10626 | -6/Garrison | Garrison Relay disabled 10711 | -6/Garrison | Discovered new exit (range 12) 10712 | -6/Garrison | Triggered checkpoint 10791 | -6/Garrison | Triggered checkpoint 10811 | -6/Garrison | Entered Factory 10811 | -5/Factory | Evolved 2 slots: Utility x2 11406 | -5/Factory | Identified exit to Garrison 11406 | -5/Factory | Entered Garrison 11436 | -5/Garrison | Spotted B-75 Beast 11467 | -5/Garrison | Triggered checkpoint 11494 | -5/Garrison | Garrison Relay disabled 11642 | -5/Garrison | Triggered checkpoint 11658 | -5/Garrison | Triggered checkpoint 11661 | -5/Garrison | Triggered checkpoint 11758 | -5/Garrison | Lost 11 parts (2n4u5w) 11881 | -5/Garrison | Destroyed B-75 Beast 12059 | -5/Garrison | Discovered new exit (range 13) 12190 | -5/Garrison | Build established: Scavenger-Tank 12197 | -5/Garrison | Discovered new exit (range 21) 12240 | -5/Garrison | Expanded RIF knowledge: Zone Cloak 12290 | -5/Garrison | Triggered checkpoint 12329 | -5/Garrison | Garrison Relay disabled 12378 | -5/Garrison | Triggered checkpoint 12443 | -5/Garrison | Discovered new exit (range 13) 12704 | -5/Garrison | Triggered checkpoint 12748 | -5/Garrison | Garrison Relay disabled 13069 | -5/Garrison | Lost 3 parts (2n1u) 13634 | -5/Garrison | Entered Factory 13634 | -4/Factory | Accompanied by 8 allies 13634 | -4/Factory | Evolved 2 slots: Utility x2 13808 | -4/Factory | Garrison activated, responded to threat 13842 | -4/Factory | Lost 3 parts (2n1u) 13911 | -4/Factory | Discovered new exit (range 60) 13911 | -4/Factory | Discovered new exit (range 61) 14081 | -4/Factory | Identified exit to Garrison 14092 | -4/Factory | Entered Garrison 14092 | -4/Garrison | Accompanied by 7 allies 14114 | -4/Garrison | Triggered checkpoint 14163 | -4/Garrison | Garrison Relay disabled 14200 | -4/Garrison | Triggered checkpoint 14256 | -4/Garrison | Lost 4 parts (2n2w) 14270 | -4/Garrison | Build established: Botlord-Mutant 14294 | -4/Garrison | Triggered checkpoint 14392 | -4/Garrison | Triggered checkpoint 14423 | -4/Garrison | Discovered new exit (range 11) 14515 | -4/Garrison | Discovered new exit (range 19) 14546 | -4/Garrison | Expanded RIF knowledge: Crosswire 14584 | -4/Garrison | Triggered checkpoint 14591 | -4/Garrison | Garrison Relay disabled 14718 | -4/Garrison | Discovered new exit (range 9) 14760 | -4/Garrison | Triggered checkpoint 14771 | -4/Garrison | Garrison Relay disabled 14874 | -4/Garrison | Triggered checkpoint 14896 | -4/Garrison | Garrison Relay disabled 14992 | -4/Garrison | Triggered checkpoint 15131 | -4/Garrison | Entered Extension 15131 | -4/Extension | Accompanied by 2 allies 15493 | -4/Extension | Rescued A7 15527 | -4/Extension | Rescued a captive Derelict 15632 | -4/Extension | Spotted B-86 Titan 15642 | -4/Extension | Spotted B-86 Titan 15672 | -4/Extension | Allies destroyed B-86 Titan 15686 | -4/Extension | Allies destroyed B-86 Titan 15703 | -4/Extension | Lost 4 parts (1n3w) 15861 | -4/Extension | Rescued a captive Derelict 15932 | -4/Extension | Rescued a captive Derelict 15933 | -4/Extension | Rescued a captive Derelict 16065 | -4/Extension | Rescued a captive Derelict 16851 | -4/Extension | Rescued a captive Derelict 16852 | -4/Extension | Rescued a captive Derelict 16913 | -4/Extension | Discovered new exit (range 10) 16914 | -4/Extension | Discovered new exit (range 6) 16963 | -4/Extension | Entered Cetus 16963 | -4/Cetus | Accompanied by 24 allies (A7) 16968 | -4/Cetus | Acquired a Cetus Manufacturing Module code from A7 16969 | -4/Cetus | Spotted Cetus Guard 16969 | -4/Cetus | Spotted Cetus Guard 16973 | -4/Cetus | Spotted Cetus Guard 16974 | -4/Cetus | Spotted Cetus Guard 16991 | -4/Cetus | Allies destroyed Cetus Guard 16995 | -4/Cetus | Destroyed Cetus Guard 16998 | -4/Cetus | Destroyed Cetus Guard 17002 | -4/Cetus | Allies destroyed Cetus Guard 17068 | -4/Cetus | Started Cetus Manufacturing Module 17083 | -4/Cetus | Discovered new exit (range 21) 17093 | -4/Cetus | Manufactured an Enhanced Grunt 17118 | -4/Cetus | Manufactured an Enhanced Grunt 17143 | -4/Cetus | Manufactured an Enhanced Grunt 17168 | -4/Cetus | Manufactured an Enhanced Grunt 17189 | -4/Cetus | Spotted Cetus Guard 17190 | -4/Cetus | Spotted Cetus Guard 17193 | -4/Cetus | Manufactured an Enhanced Grunt 17194 | -4/Cetus | Discovered new exit (range 22) 17198 | -4/Cetus | Spotted Cetus Guard 17200 | -4/Cetus | Spotted Cetus Guard 17209 | -4/Cetus | Allies destroyed A7 17213 | -4/Cetus | Allies destroyed Cetus Guard 17214 | -4/Cetus | Allies destroyed Cetus Guard 17214 | -4/Cetus | Allies destroyed Cetus Guard 17216 | -4/Cetus | Allies destroyed Cetus Guard 17222 | -4/Cetus | Met Revision 17 17336 | -4/Cetus | Extracted ID and sensor layout for unrecognized location from A7's data core 17477 | -4/Cetus | Build established: Commander-Mutant 17681 | -4/Cetus | Entered Archives 17681 | -4/Archives | Accompanied by 19 allies 17717 | -4/Archives | Discovered new exit (range 18) 17726 | -4/Archives | Discovered new exit (range 21) 17730 | -4/Archives | Discovered new exit (range 17) 18018 | -4/Archives | Entered Hub_04(d) 18018 | -4/Hub_04(d) | Accompanied by 24 allies 18306 | -4/Hub_04(d) | Identified exit to Garrison 18349 | -4/Hub_04(d) | Entered Garrison 18349 | -4/Garrison | Accompanied by 14 allies 18517 | -4/Garrison | Garrison Relay disabled 18651 | -4/Garrison | Triggered checkpoint 18652 | -4/Garrison | Triggered checkpoint 18668 | -4/Garrison | Triggered checkpoint 18741 | -4/Garrison | Discovered new exit (range 21) 18914 | -4/Garrison | Discovered new exit (range 9) 18938 | -4/Garrison | Expanded RIF knowledge: Autoassimilate 19016 | -4/Garrison | Triggered checkpoint 19016 | -4/Garrison | Garrison Relay disabled 19042 | -4/Garrison | Found Prototype Device 19042 | -4/Garrison | Identified Exp. Thermal Shield 19092 | -4/Garrison | Triggered checkpoint 19134 | -4/Garrison | Triggered checkpoint 19157 | -4/Garrison | Garrison Relay disabled 19192 | -4/Garrison | Discovered new exit (range 21) 19240 | -4/Garrison | Build established: Botlord-Mutant 19358 | -4/Garrison | Triggered checkpoint 19385 | -4/Garrison | Garrison Relay disabled 19672 | -4/Garrison | Entered Research 19672 | -3/Research | Accompanied by 9 allies 19672 | -3/Research | Evolved 2 slots: Utility x2 19867 | -3/Research | Discovered new exit (range 166) 19872 | -3/Research | Revision forces began assault on 0b10 19955 | -3/Research | Met up with Revision 17++ 20200 | -3/Research | Found Fusion Bomb Launcher 20372 | -3/Research | Research terminal network offline 20493 | -3/Research | Identified exit to Garrison 20493 | -3/Research | Entered Garrison 20493 | -3/Garrison | Accompanied by 4 allies 20526 | -3/Garrison | Triggered checkpoint 20541 | -3/Garrison | Garrison Relay disabled 20595 | -3/Garrison | Spotted B-86 Titan 20600 | -3/Garrison | Triggered checkpoint 20600 | -3/Garrison | Triggered checkpoint 20609 | -3/Garrison | Triggered checkpoint 20631 | -3/Garrison | Triggered checkpoint 20669 | -3/Garrison | Discovered new exit (range 10) 20771 | -3/Garrison | Garrison Relay disabled 20893 | -3/Garrison | Discovered new exit (range 9) 20952 | -3/Garrison | Triggered checkpoint 20982 | -3/Garrison | Garrison Relay disabled 21100 | -3/Garrison | Discovered new exit (range 13) 21121 | -3/Garrison | Expanded RIF knowledge: Zone Cloak 21164 | -3/Garrison | Triggered checkpoint 21182 | -3/Garrison | Garrison Relay disabled 21486 | -3/Garrison | Entered Research 21486 | -3/Research | Accompanied by 8 allies 21682 | -3/Research | Identified exit to Armory 21682 | -3/Research | Identified exit to Quarantine 21760 | -3/Research | P-80 Master assimilated allied Enforcer 8c 21840 | -3/Research | Entered Quarantine 21840 | -3/Quarantine | Accompanied by 12 allies 21866 | -3/Quarantine | Found Core Stripper 22065 | -3/Quarantine | Found Terrabomb 22070 | -3/Quarantine | Found Terrabomb 22089 | -3/Quarantine | Discovered new exit (range 42) 22198 | -3/Quarantine | Found Subatomic Replicator 22277 | -3/Quarantine | Identified exit to Garrison 22313 | -3/Quarantine | Found Sigix Corpse 22372 | -3/Quarantine | Found Phase Redirector 22426 | -3/Quarantine | Found Matter Drive 22551 | -3/Quarantine | Found Enh. Force Lance 22908 | -3/Quarantine | Found Alien Energy Cannon 22908 | -3/Quarantine | Identified Core Cannon 22923 | -3/Quarantine | Used Terrabomb 23021 | -3/Quarantine | Spotted Alpha 7 23058 | -3/Quarantine | Allies destroyed Alpha 7 23088 | -3/Quarantine | Lost 3 parts (1n2u) 23090 | -3/Quarantine | Found Alien Launcher 23090 | -3/Quarantine | Identified Sigix Terminator 23294 | -3/Quarantine | Entered Garrison 23294 | -3/Garrison | Accompanied by 6 allies 23324 | -3/Garrison | Triggered checkpoint 23336 | -3/Garrison | Garrison Relay disabled 23431 | -3/Garrison | Spotted B-86 Titan 23435 | -3/Garrison | Local machine network offline 23439 | -3/Garrison | Triggered checkpoint 23449 | -3/Garrison | P-80 Master assimilated allied Veteran 8m 23453 | -3/Garrison | P-80 Master assimilated allied Veteran 8q 23461 | -3/Garrison | P-80 Master assimilated allied Warden 8b 23549 | -3/Garrison | Lost 11 parts (1p3n4u3w) 23561 | -3/Garrison | Triggered checkpoint 23589 | -3/Garrison | Destroyed B-86 Titan 23666 | -3/Garrison | Discovered new exit (range 9) 23682 | -3/Garrison | Expanded RIF knowledge: Robot Detection 23762 | -3/Garrison | Triggered checkpoint 23772 | -3/Garrison | Garrison Relay disabled 23829 | -3/Garrison | Triggered checkpoint 23834 | -3/Garrison | Triggered checkpoint 23882 | -3/Garrison | Discovered new exit (range 12) 23926 | -3/Garrison | Triggered checkpoint 23948 | -3/Garrison | Garrison Relay disabled 24059 | -3/Garrison | Discovered new exit (range 13) 24112 | -3/Garrison | Triggered checkpoint 24124 | -3/Garrison | Garrison Relay disabled 24395 | -3/Garrison | Entered Research 24395 | -2/Research | Accompanied by 10 allies 24395 | -2/Research | Evolved 2 slots: Power x1, Utility x1 24488 | -2/Research | Identified exit to Testing 24640 | -2/Research | Spotted B-90 Cyclops 24661 | -2/Research | Allies destroyed B-90 Cyclops 24733 | -2/Research | Spotted B-90 Cyclops 24749 | -2/Research | P-80 Master assimilated allied Champion 8a 24762 | -2/Research | Allies destroyed B-90 Cyclops 24823 | -2/Research | Identified exit to Garrison 24823 | -2/Research | Entered Garrison 24900 | -2/Garrison | Triggered checkpoint 24973 | -2/Garrison | Garrison Relay disabled 25029 | -2/Garrison | Spotted B-90 Cyclops 25094 | -2/Garrison | Triggered checkpoint 25100 | -2/Garrison | Triggered checkpoint 25163 | -2/Garrison | Lost 4 parts (1p2n1u) 25430 | -2/Garrison | Triggered checkpoint 25481 | -2/Garrison | Discovered exit to Testing (range 9) 25502 | -2/Garrison | Expanded RIF knowledge: Command Fork 25595 | -2/Garrison | Discovered exit to Testing (range 10) 25620 | -2/Garrison | Triggered checkpoint 25630 | -2/Garrison | Garrison Relay disabled 25694 | -2/Garrison | Triggered checkpoint 25792 | -2/Garrison | Discovered exit to Testing (range 9) 25834 | -2/Garrison | Triggered checkpoint 25845 | -2/Garrison | Garrison Relay disabled 25853 | -2/Garrison | Build established: Botlord-Tank 25956 | -2/Garrison | Triggered checkpoint 25985 | -2/Garrison | Garrison Relay disabled 26140 | -2/Garrison | Entered Testing 26140 | -2/Testing | Accompanied by 1 ally 26211 | -2/Testing | Spotted PD-VS9GE437T3 26266 | -2/Testing | Lost 4 parts (1p1n1u1w) 26288 | -2/Testing | Build established: Botlord-Mutant 26356 | -2/Testing | Discovered new exit (range 50) 26591 | -2/Testing | Used Terrabomb 26628 | -2/Testing | Lost 7 parts (1p2n2u2w) 26671 | -2/Testing | Core integrity fell below 50% 26698 | -2/Testing | Lost 4 parts (1p2n1w) 26984 | -2/Testing | P-80 Master assimilated allied Processor 9a 27091 | -2/Testing | Lost 6 parts (2n1u3w) 27330 | -2/Testing | Identified exit to Garrison 27339 | -2/Testing | Entered Garrison 27339 | -2/Garrison | Accompanied by 1 ally 27349 | -2/Garrison | Expanded RIF knowledge: Program Shield 27404 | -2/Garrison | Triggered checkpoint 27427 | -2/Garrison | P-80 Master assimilated hostile G-73 Enforcer 27456 | -2/Garrison | Garrison Relay disabled 27566 | -2/Garrison | Lost 3 parts (1n1u1w) 27583 | -2/Garrison | Spotted B-90 Cyclops 27586 | -2/Garrison | Fired Sigix Terminator 27586 | -2/Garrison | Triggered checkpoint 27586 | -2/Garrison | Destroyed B-90 Cyclops 27586 | -2/Garrison | Triggered checkpoint 27586 | -2/Garrison | Triggered checkpoint 27586 | -2/Garrison | Destroyed self with Sigix Terminator Last Messages --------------- 27563_ Acquired 65 matter. 27586_ Sigix Terminator expended. 27586_ Destroyed Med. Insulated Plating. 27586_ B-90 Cyclops destroyed. 27586_ Destroyed Imp. Antigrav System. 27586_ Destroyed Sml. Battery. 27586_ Destroyed Gamma Rifle. 27586_ P-80 Master destroyed. 27586_ Lrg. Storage Unit destroyed. 27586_ Destroyed Lrg. Storage Unit. 27586_ Mic. Antimatter Reactor destroyed. 27586_ Destroyed Mic. Antimatter Reactor. 27586_ Hvy. Machine Gun destroyed. 27586_ Destroyed Hvy. Machine Gun. 27586_ Biometal Leg destroyed. 27586_ Destroyed Biometal Leg. 27586_ Wheel destroyed. 27586_ Destroyed Wheel. 27586_ Wheel destroyed. 27586_ Destroyed Wheel. Map ----- +----------------------------------------------------+ | ?????????????????????????????????????????????????? | | ?????????????????????????????????????????????????? | | ?????????????????????????????????????????????????? | | ?????????????????????????????????????????????????? | | ?????????????????????????????????????????????????? | | ?????????????????????????????????????????????????? | | ??????????????????????????????????????###########? | | ??????????????????????????????????????# #""""#? | | ??????????????????????????????????????# "#? | | ??????????????????????????????????????# ! #""""#? | | ??????????????????????????????????????# ########? | | ??????????????????????????????####????# #???????? | | ?????????????????????????????## ?????# #???????? | | ????????????????????????????##" ###???# #???????? | | ???????????????????????????## " " #???# #???????? | | ???????????????????????????# [[= #???# #???????? | | ????????????????????????????# %*" #???# #???????? | | ???????????????????????######"=[ "##### #???????? | | ???????????????????????# % ###?????? | | ???gg??????????????????# # #?????? | | ??g?g??????????????????# #####"##### #### #?????? | | ???????????????????????# #???# #???# #??# #?????? | | ???????????????????????# #???# #???# #??# #?????? | | ?????????????# ######## #??## ##### #??# #?????? | | ??????????; ; ; ; |# "!#?##"##????? | | ??????????; ; ;;;;;;;;!@#??## #####*#?# #????? | | ??????????; ; ;; ;;!!#???# #???#%###! ###### | | ??????????;;;;;;;; ;!! #???# #???#![[%* | | ??????????? ! ???# #???############## | | ??????????? ???? ????????????????#" | | ???????????? #???#????????????????## | | ????????????; ;; ; #?????????????????????? | | ????????????; ;; ;; #?????????????????????? | | ????????????? "?????????????????????? | | ????????????? "g????????????????????? | | ?????????????? "?????????????????????? | | ?????????????? "g????????????????????? | | ????????????????;; ;; #?????????????????????? | | ?????????????????? ;; #?????????????????????? | | ????????????????????? ??????????????????????? | | ??????????????????????? ??????????????????????? | | ?????????????????????????????????????????????????? | | ?????????????????????????????????????????????????? | | ?????????????????????????????????????????????????? | | ?????????????????????????????????????????????????? | | ?????????????????????????????????????????????????? | | ?????????????????????????????????????????????????? | | ?????????????????????????????????????????????????? | | ?????????????????????????????????????????????????? | | ?????????????????????????????????????????????????? | +----------------------------------------------------+ Best States ------------- Heat Dissipation 80 Coolant Potential 65 Energy Generation 45 Energy Capacity 315 Matter Stores 300 Matter Capacity 300 Sight Range 22 Terrain Scan Range 16 Terrain Scan Density 210 Cloak Strength 5 EM Shielding 3 Armor Coverage 675 Resistance: TH 15 Weapon Shielding 66 Phase Shifting 10 Evasion (%) 65 Targeting Accuracy 24 Melee Accuracy 6 Launcher Accuracy 30 Target Analysis 8 Recoil Reduction 4 Salvage Targeting 6 Offensive Hacking 14 Defensive Hacking 10 Relay Coupler Types 9 Relay Coupler Value 247 Authchip Count 3 Trap Extractor Capacity 4 Item Schematics ----------------- Imp. Remote Datajack | -3/Research | Scanalyzed Tri-rail Accelerator | -3/Quarantine | Reported Coolant Network | -3/Quarantine | Reported Nanoactuators | -3/Quarantine | Reported Prc. Matter Filter | -3/Quarantine | Reported Linear Accelerator | -3/Quarantine | Reported Kinetic Spear | -3/Quarantine | Reported Hvy. Neutron Cannon | -3/Quarantine | Reported Imp. Phase Shifter | -3/Quarantine | Reported Imp. Energy Mantle | -3/Quarantine | Reported Com. Tesla Bomb Launcher | -3/Quarantine | Reported Exp. Coolant Injector | -3/Quarantine | Reported Hvy. Tesla Rifle | -3/Quarantine | Reported Plasma Lance | -3/Quarantine | Reported Adv. Kinecellerator | -3/Quarantine | Reported Exp. Thermal Shield | -3/Quarantine | Reported Cld. Phase Cannon | -3/Quarantine | Reported Plasma Cutter | -3/Quarantine | Reported Enh. Biometal Leg | -3/Quarantine | Reported Centrium Medium Armor Plating | -3/Quarantine | Reported Phase Gun | -3/Quarantine | Reported Imp. Lightning Gun | -3/Quarantine | Reported Shock Maul | -3/Quarantine | Reported Electron Diverter | -3/Quarantine | Reported Cmb. Gravmag System | -3/Quarantine | Reported Nuclear Pulse Array | -3/Quarantine | Reported Adv. KE Penetrator | -3/Quarantine | Reported Imp. Diametric Drive | -3/Quarantine | Reported Hacking Suite | -3/Quarantine | Reported Exp. Cooling System | -3/Quarantine | Reported Adv. Dynamic Insulation System | -3/Quarantine | Reported Imp. Launcher Guidance Computer | -3/Quarantine | Reported Impulse Thruster Array | -3/Quarantine | Reported Gravity Neutralizer | -3/Quarantine | Reported Exp. Melee Analysis Suite | -3/Quarantine | Reported Adv. Gravity Neutralizer | -3/Quarantine | Reported Adv. VSS Leg | -3/Quarantine | Reported Hvy. Hardcell Cannon | -3/Quarantine | Reported Lgt. Antimatter Cannon | -3/Quarantine | Reported Nova Cannon | -3/Quarantine | Reported Adv. Remote Datajack | -3/Quarantine | Reported Centrium Heavy Armor Plating | -3/Quarantine | Archive Stealth Drone Bay | -3/Quarantine | Archive Cld. Phase Gun | -3/Quarantine | Archive Adv. Matter Compressor | -3/Quarantine | Archive Hdn. Centrium Wheel | -3/Quarantine | Archive Helical Railgun | -3/Quarantine | Archive Tactical Quantum Warhead | -3/Quarantine | Archive Robot Schematics ------------------ L-61 Swordsman | -3/Quarantine | Archive M-30 Cleanser | -3/Quarantine | Archive C-55 Analyst | -3/Quarantine | Archive O-32 Director | -3/Quarantine | Archive B-74 Champion | -3/Quarantine | Archive Fabricated ------------ Nothing Alien Tech Used ----------------- Core Cannon Terrabomb Phase Redirector Sigix Terminator Core Stripper Achievements -------------- Great Explorer Revolutionary Research Challenges ------------ None Game ------ Seed TiamatNuclearBlaster Manual? 0 Play Time 06:32:11 Cumulative 204.8 hours Start 2022.06.02 @ 06:58:42 End 2022.06.03 @ 02:21:33 Sessions 3 Manual Loads 0 Difficulty Rogue Special Mode None Game No. 263 Rogue 263 Adventurer 0 Explorer 0 Win Type - Total 10 Types 8/0/1/1/0/0/0/0/0 Lore% 59 Gallery% 79 Achievement% 70 Wizard Run 0 Options --------- ASCII 0 Keyboard 0 Movement Numpad Keybinds 0 Fullscreen 1 Font 18/Terminus Map View 76x50 Tactical HUD 1 Map Filters NONE Filters NONE Steam 1 RUN: f6719697-9214-404e-b198-6d5955c27479